Workbook

Sheet ТИТУЛ
A1: Муниципальное автономное дошкольное образовательное учреждение
A2: детский сад комбинированного вида №24 "Березка" г. Белебея
A3: муниципального района Белебеевский район Республики Башкортостан
A10: Диагностика индивидуального развития детей 5-6 лет с ТНР
A12: 20__-20___ учебный год
A14: В соответствии с Федеральной адаптированной образовательной
A15: программой дошкольного образования
A16: Приказ Министерства просвещения РФ от 24.11.2022г.
A20: Педагоги:
A22: Воспитатель:
A23: Воспитатель:
A24: Учитель-логопед:
A25: Муз.руководитель
A47: Целевые ориентиры на этапе завершения освоения Федеральной адаптированной образовательной программы дошкольного образования для обучающихся с ограниченными возможностями здоровья
A48: К концу данного возрастного этапа ребенок:
A49: 1) обладает сформированной мотивацией к школьному обучению;
A50: 2) усваивает значения новых слов на основе знаний о предметах и явлениях окружающего мира;
A51: 3) употребляет слова, обозначающие личностные характеристики, многозначные;
A52: 4) умеет подбирать слова с противоположным и сходным значением;
A53: 5) правильно употребляет основные грамматические формы слова;
A54: 6) составляет различные виды описательных рассказов (описание, повествование, с элементами рассуждения) с соблюдением цельности и связности высказывания, составляет творческие рассказы;
A55: 7) владеет простыми формами фонематического анализа, способен осуществлять сложные формы фонематического анализа (с постепенным переводом речевых умений во внутренний план), осуществляет операции фонематического синтеза;
A56: 8) осознает слоговое строение слова, осуществляет слоговой анализ и синтез слов (двухсложных с открытыми, закрытыми слогами, трехсложных с открытыми слогами, односложных);
A57: 9) правильно произносит звуки (в соответствии с онтогенезом);
A58: 10) владеет основными видами продуктивной деятельности, проявляет инициативу и самостоятельность в разных видах деятельности: в игре, общении, конструировании;
A59: 11) выбирает род занятий, участников по совместной деятельности, избирательно и устойчиво взаимодействует с детьми;
A60: 12) участвует в коллективном создании замысла в игре и на занятиях;
A61: 13) передает как можно более точное сообщение другому, проявляя внимание к собеседнику;
A62: 14) регулирует свое поведение в соответствии с усвоенными нормами и правилами, проявляет кооперативные умения в процессе игры, соблюдая отношения партнерства, взаимопомощи, взаимной поддержки;
A63: 15) отстаивает усвоенные нормы и правила перед ровесниками и педагогическим работником, стремится к самостоятельности, проявляет относительную независимость от педагогического работника;
A64: 16) использует в играх знания, полученные в ходе экскурсий, наблюдений, знакомства с художественной литературой, картинным материалом, народным творчеством, историческими сведениями, мультфильмами;
A65: 17) использует в процессе продуктивной деятельности все виды словесной регуляции: словесного отчета, словесного сопровождения и словесного планирования деятельности;
A66: 18) устанавливает причинно-следственные связи между условиями жизни, внешними и функциональными свойствами в животном и растительном мире на основе наблюдений и практического экспериментирования;
A67: 19) определяет пространственное расположение предметов относительно себя, геометрические фигуры;
A68: 20) владеет элементарными математическими представлениями: количество в пределах десяти, знает цифры 0, 1-9, соотносит их с количеством предметов, решает простые арифметические задачи устно, используя при необходимости в качестве счетного материала символические изображения;
A69: 21) определяет времена года, части суток;
A70: 22) самостоятельно получает новую информацию (задает вопросы, экспериментирует);
A71: 23) пересказывает литературные произведения, составляет рассказ по иллюстративному материалу (картинкам, картинам, фотографиям), содержание которых отражает эмоциональный, игровой, трудовой, познавательный опыт обучающихся;
A72: 24) составляет рассказы по сюжетным картинкам и по серии сюжетных картинок, используя графические схемы, наглядные опоры;
A73: 25) составляет с помощью педагогического работника небольшие сообщения, рассказы из личного опыта;
A74: 26) владеет предпосылками овладения грамотой;
A75: 27) стремится к использованию различных средств и материалов в процессе изобразительной деятельности;
A76: 28) имеет элементарные представления о видах искусства, понимает доступные произведения искусства (картины, иллюстрации к сказкам и рассказам, народная игрушка), воспринимает музыку, художественную литературу, фольклор;
A77: 29) проявляет интерес к произведениям народной, классической и современной музыки, к музыкальным инструментам;
A78: 30) сопереживает персонажам художественных произведений;
A79: 31) выполняет основные виды движений и упражнения по словесной инструкции педагогических работников: согласованные движения, а также разноименные и разнонаправленные движения;
A80: 32) осуществляет элементарное двигательное и словесное планирование действий в ходе спортивных упражнений;
A81: 33) знает и подчиняется правилам подвижных игр, эстафет, игр с элементами спорта;
A82: 34) владеет элементарными нормами и правилами здорового образа жизни (в питании, двигательном режиме, закаливании, при формировании полезных привычек).

Sheet ОГЛАВЛЕНИЕ
B1: ОГЛАВЛЕНИЕ:
B2: Кликнув мышкой по соответствующему названию, вы автоматически перейдете в нужный раздел.
A3: наименование вкладки | B3: ТИТУЛЬНЫЙ ЛИСТ
A4: Образовательная область "Речевое развитие"
A5: РР-1 | B5: НАПРАВЛЕНИЕ I. ФОРМИРОВАНИЕ СЛОВАРЯ
A6: РР-2 | B6: НАПРАВЛЕНИЕ 2. ЗВУКОВАЯ КУЛЬТУРА РЕЧИ. ПОДГОТОВКА К ОБУЧЕНИЮ ГРАМОТЕ
A7: РР-3 | B7: НАПРАВЛЕНИЕ 3. ГРАММАТИЧЕСКИЙ СТРОЙ РЕЧИ.
A8: РР-4 | B8: НАПРАВЛЕНИЕ 4. СВЯЗНАЯ РЕЧЬ. ИНТЕРЕС К ХУДОЖЕСТВЕННОЙ ЛИТЕРАТУРЕ
A9: ИТОГ РР | B9: Обобщение результатов педагогической диагностики по направлениям ОО "Речевое развитие"
A10: Образовательная область "Познавательное развитие"
A11: ПР-1 | B11: НАПРАВЛЕНИЕ 1. СЕНСОРНЫЕ ЭТАЛОНЫ И ПОЗНАВАТЕЛЬНЫЕ ДЕЙСТВИЯ. ОКРУЖАЮЩИЙ МИР. ПРИРОДА.
A12: ПР-2 | B12: НАПРАВЛЕНИЕ 2. МАТЕМАТИЧЕСКИЕ ПРЕДСТАВЛЕНИЯ
A13: ИТОГ -ПР | B13: Обобщение результатов педагогической диагностики по направлениям ОО "Познавательное развитие"
A14: Образовательная область "Социально-коммуникативное развитие"
A15: СК-1 | B15: НАПРАВЛЕНИЕ 1. СОЦИАЛЬНЫЕ ОТНОШЕНИЯ.
A17: СК-1 | B17: НАПРАВЛЕНИЕ 2. ФОРМИРОВАНИЕ ОСНОВ ГРАЖДАНСТВЕННОСТИ И ПАРТИОТИЗМА.
A19: СК-2 | B19: НАПРАВЛЕНИЕ 3. ТРУДОВОЕ ВОСПИТАНИЕ
A20: СК-3 | B20: НАПРАВЛЕНИЕ 4. ФОРМИРОВАНИЕ БЕЗОПАСНОГО ПОВЕДЕНИЯ
A21: ИТОГ СК | B21: Обобщение результатов педагогической диагностики по направлениям ОО "Социально-коммуникативное развитие"
A22: Образовательная область "Художественно-эстетическое развитие"
A23: ХЭ-1 | B23: НАПРАВЛЕНИЕ I. ПРИОБЩЕНИЕ К ИСКУССТВУ
A24: ХЭ-2 | B24: НАПРАВЛЕНИЕ 2. КОНСТРУКТИВНАЯ ДЕЯТЕЛЬНОСТЬ
A25: ХЭ-3 | B25: НАПРАВЛЕНИЕ 3. ИЗОБРАЗИТЕЛЬНАЯ ДЕЯТЕЛЬНОСТЬ
A26: ХЭ-4 | B26: НАПРАВЛЕНИЕ 4. МУЗЫКАЛЬНАЯ ДЕЯТЕЛЬНОСТЬ
A27: ХЭ-5 | B27: НАПРАВЛЕНИЕ 5. ТЕАТРАЛИЗОВАННАЯ И КУЛЬТУРНО-ДОСУГОВАЯ ДЕЯТЕЛЬНОСТЬ
A28: ИТОГ ХЭ | B28: Обобщение результатов педагогической диагностики по направлениям ОО "Художественно-эстетическое развитие"
A29: Образовательная область "Физическое развитие"
A30: ФР-1 | B30: НАПРАВЛЕНИЕ I. ОСНОВНАЯ ГИМНАСТИКА. ПОДВИЖНЫЕ И СПОРТИВНЫЕ ИГРЫ. СПОРТИВНЫЕ УПРАЖНЕНИЯ
A31: ФР-2 | B31: НАПРАВЛЕНИЕ 2. ФОРМИРОВАНИЕ ОСНОВ ЗДОРОВОГО ОБРАЗА ЖИЗНИ. АКТИВНЫЙ ОТДЫХ
A32: ИТОГ ФР | B32: Обобщение результатов педагогической диагностики по направлениям ОО «Физическое развитие»
A34: ОБЩИЙ ИТОГ | B34: Обобщение результатов педагогической диагностики по всем образовательным областям

Sheet РР-1
A1: Образовательная область «Речевое развитие»
A2: НАПРАВЛЕНИЕ I. ФОРМИРОВАНИЕ СЛОВАРЯ | AQ2: ОГЛАВЛЕНИЕ
A4: №п/п | B4: ФИ ребенка | C4: Правильно произносит сущ-ые по всем изучаемым темам | E4: Понимает значение и действия, выраженные | K4: Понимает и использует прилагательные | Q4: Понимает и использует в речи обобщающие слова | AI4: Понимает и использует в речи | AU4: среднее значение
E5: приставочными глаголами | G5: личными глаголами | I5: возвратными глаголами | K5: притяжательные | M5: относительные | O5: с уменьшительно-ласкат. суффиксами | Q5: транспорт | S5: посуда | U5: одежда | W5: овощи | Y5: фрукты | AA5: ягоды | AC5: мебель | AE5: дикие животные | AG5: домашние животные | AI5: сининимы | AK5: антиномы | AM5: простые предлоги | AO5: местоимения | AQ5: наречия | AS5: числительные
C6: н.г. | D6: к.г. | E6: н.г. | F6: к.г. | G6: н.г. | H6: к.г. | I6: н.г. | J6: к.г. | K6: н.г. | L6: к.г. | M6: н.г. | N6: к.г. | O6: н.г. | P6: к.г. | Q6: н.г. | R6: к.г. | S6: н.г. | T6: к.г. | U6: н.г. | V6: к.г. | W6: н.г. | X6: к.г. | Y6: н.г. | Z6: к.г. | AA6: н.г. | AB6: к.г. | AC6: н.г. | AD6: к.г. | AE6: н.г. | AF6: к.г. | AG6: н.г. | AH6: к.г. | AI6: н.г. | AJ6: к.г. | AK6: н.г. | AL6: к.г. | AM6: н.г. | AN6: к.г. | AO6: н.г. | AP6: к.г. | AQ6: н.г. | AR6: к.г. | AS6: н.г. | AT6: к.г. | AU6: н.г. | AV6: к.г.
A7: 1 | B7: Иванов | AU7: =(C7+E7+G7+I7+K7+M7+O7+Q7+S7+U7+W7+Y7+AA7+AC7+AE7+AG7+AI7+AK7+AM7+AO7+AQ7+AS7)/22 -> 0.00 | AV7: =(D7+F7+H7+J7+L7+N7+P7+R7+T7+V7+X7+Z7+AB7+AD7+AF7+AH7+AJ7+AL7+AN7+AP7+AR7+AT7)/22 -> 0.00
A8: 2 | B8: Петров | AU8: =(C8+E8+G8+I8+K8+M8+O8+Q8+S8+U8+W8+Y8+AA8+AC8+AE8+AG8+AI8+AK8+AM8+AO8+AQ8+AS8)/22 -> 0.00 | AV8: =(D8+F8+H8+J8+L8+N8+P8+R8+T8+V8+X8+Z8+AB8+AD8+AF8+AH8+AJ8+AL8+AN8+AP8+AR8+AT8)/22 -> 0.00
A9: 3 | B9: Сидоров | AU9: 0.00 | AV9: 0.00
A10: 4 | AU10: 0.00 | AV10: 0.00
A11: 5 | AU11: 0.00 | AV11: 0.00
A12: 6 | AU12: 0.00 | AV12: 0.00
A13: 7 | AU13: 0.00 | AV13: 0.00
A14: 8 | AU14: 0.00 | AV14: 0.00
A15: 9 | AU15: 0.00 | AV15: 0.00
A16: 10 | AU16: 0.00 | AV16: 0.00
A17: 11 | AU17: 0.00 | AV17: 0.00
A18: 12 | AU18: 0.00 | AV18: 0.00
A19: 13 | AU19: 0.00 | AV19: 0.00
A20: 14 | AU20: 0.00 | AV20: 0.00
A21: 15 | AU21: 0.00 | AV21: 0.00
A22: 16 | AU22: 0.00 | AV22: 0.00
A23: 17 | AU23: 0.00 | AV23: 0.00
A24: 18 | AU24: 0.00 | AV24: 0.00
A25: 19 | AU25: 0.00 | AV25: 0.00
A26: 20 | AU26: 0.00 | AV26: 0.00
A27: 21 | AU27: 0.00 | AV27: 0.00
A28: 22 | AU28: 0.00 | AV28: 0.00
A29: 23 | AU29: 0.00 | AV29: 0.00
A30: 24 | AU30: 0.00 | AV30: 0.00
B31: среднее значение: | C31: =(C7+C8+C9+C10+C11+C12+C13+C14+C15+C16+C17+C18+C19+C20+C21+C22+C23+C24+C25+C26+C27+C28+C29+C30)/COUNTA($B$7:$B$30) -> 0.00 | D31: =(D7+D8+D9+D10+D11+D12+D13+D14+D15+D16+D17+D18+D19+D20+D21+D22+D23+D24+D25+D26+D27+D28+D29+D30)/COUNTA($B$7:$B$30) -> 0.00 | E31: 0.00 | F31: 0.00 | G31: 0.00 | H31: 0.00 | I31: 0.00 | J31: 0.00 | K31: 0.00 | L31: 0.00 | M31: 0.00 | N31: 0.00 | O31: 0.00 | P31: 0.00 | Q31: 0.00 | R31: 0.00 | S31: 0.00 | T31: 0.00 | U31: 0.00 | V31: 0.00 | W31: 0.00 | X31: 0.00 | Y31: 0.00 | Z31: 0.00 | AA31: 0.00 | AB31: 0.00 | AC31: 0.00 | AD31: 0.00 | AE31: 0.00 | AF31: 0.00 | AG31: 0.00 | AH31: 0.00 | AI31: 0.00 | AJ31: 0.00 | AK31: 0.00 | AL31: 0.00 | AM31: 0.00 | AN31: 0.00 | AO31: 0.00 | AP31: 0.00 | AQ31: 0.00 | AR31: 0.00 | AS31: 0.00 | AT31: 0.00 | AU31: =(C31+E31+G31+I31+K31+M31+O31+Q31+S31+U31+W31+Y31+AA31+AC31+AE31+AG31+AI31+AK31+AM31+AO31+AQ31+AS31)/22 -> 0.00 | AV31: =(D31+F31+H31+J31+L31+N31+P31+R31+T31+V31+X31+Z31+AB31+AD31+AF31+AH31+AJ31+AL31+AN31+AP31+AR31+AT31)/22 -> 0.00
B35: начало года
C36: всего | D36: норма | E36: ниже нормы | F36: низкий
B37: количество детей | C37: =COUNTA(B7:B30) -> 3 | D37: =COUNTIF(AU7:AU30,">=3,8") -> 0 | E37: =COUNTIFS(AU7:AU30,"<3,7",AU7:AU30,">=2,3") -> 0 | F37: =COUNTIFS(AU7:AU30,"<2,2",AU7:AU30,">0") -> 0
B38: % | C38: 100 | D38: =D37*C38/C37 -> 0 | E38: =E37*C38/C37 -> 0.0 | F38: =F37*C38/C37 -> 0.0
B41: конец года
C42: всего | D42: норма | E42: ниже нормы | F42: низкий
B43: количество детей | C43: =COUNTA(B7:B30) -> 3 | D43: =COUNTIF(AV7:AV30,">=3,8") -> 0 | E43: =COUNTIFS(AV7:AV30,"<3,7",AV7:AV30,">=2,3") -> 0 | F43: =COUNTIFS(AV7:AV30,"<2,2",AV7:AV30,">0") -> 0
B44: % | C44: 100 | D44: =D43*C44/C43 -> 0.0 | E44: =E43*C44/C43 -> 0.0 | F44: =F43*C44/C43 -> 0.0

Sheet РР-2
A1: НАПРАВЛЕНИЕ 2. ЗВУКОВАЯ КУЛЬТУРА РЕЧИ. ПОДГОТОВКА К ОБУЧЕНИ ГРАМОТЕ. | AO1: ОГЛАВЛЕНИЕ
A3: №п/п | B3: ФИ ребенка | C3: Умеет передавать голосом интонацию, изменять темп речи в организованной и свободной деятельности | E3: Может воспроизводить цепочки слогов | K3: умеет различать на слух длинные и короткие слова | M3: может определить кол-во слогов в словах из одного-трех слогов | O3: может синтезировать слово из одного-трех слогов | Q3: может синтезировать слово из двух-трех слогов | S3: может подобрать слова на заданный гласный или согласный звук | U3: Может определить на слух | AA3: Может определить на слух и назвать | AM3: Определяет в "зашумленных" условиях изученные буквы | AO3: Проводит анализ слов различной звуковой структуры | AQ3: Выделяет словесное ударение и определяет его место в слове | AS3: среднее значение
E4: со сменой ударения и интонации | G4: с разными согласными и одинаковыми гласными | I4: со стечением согласных | U4: гласный звук в начале слова | W4: согласный звук в начале слова | Y4: согласный звук в конце слова | AA4: гласный звук (ударный, безударный) | AC4: согласный звук | AE4: согласный твердый звук | AG4: согласный мягкий звук | AI4: согласный звонкий звук | AK4: согласный глухой звук
C5: н.г. | D5: к.г. | E5: н.г. | F5: к.г. | G5: н.г. | H5: к.г. | I5: н.г. | J5: к.г. | K5: н.г. | L5: к.г. | M5: н.г. | N5: к.г. | O5: н.г. | P5: к.г. | Q5: н.г. | R5: к.г. | S5: н.г. | T5: к.г. | U5: н.г. | V5: к.г. | W5: н.г. | X5: к.г. | Y5: н.г. | Z5: к.г. | AA5: н.г. | AB5: к.г. | AC5: н.г. | AD5: к.г. | AE5: н.г. | AF5: к.г. | AG5: н.г. | AH5: к.г. | AI5: н.г. | AJ5: к.г. | AK5: н.г. | AL5: к.г. | AM5: н.г. | AN5: к.г. | AO5: н.г. | AP5: к.г. | AQ5: н.г. | AR5: к.г. | AS5: н.г. | AT5: к.г.
A6: 1 | B6: Иванов | AS6: =(C6+E6+G6+I6+K6+M6+O6+Q6+S6+U6+W6+Y6+AA6+AC6+AE6+AG6+AI6+AK6+AM6+AO6+AQ6)/21 -> 0.00 | AT6: =(D6+F6+H6+J6+L6+N6+P6+R6+T6+V6+X6+Z6+AB6+AD6+AF6+AH6+AJ6+AL6+AN6+AP6+AR6)/21 -> 0.00
A7: 2 | B7: Петров | AS7: =(C7+E7+G7+I7+K7+M7+O7+Q7+S7+U7+W7+Y7+AA7+AC7+AE7+AG7+AI7+AK7+AM7+AO7+AQ7)/21 -> 0.00 | AT7: =(D7+F7+H7+J7+L7+N7+P7+R7+T7+V7+X7+Z7+AB7+AD7+AF7+AH7+AJ7+AL7+AN7+AP7+AR7)/21 -> 0.00
A8: 3 | B8: Сидоров | AS8: 0.00 | AT8: 0.00
A9: 4 | AS9: 0.00 | AT9: 0.00
A10: 5 | AS10: 0.00 | AT10: 0.00
A11: 6 | AS11: 0.00 | AT11: 0.00
A12: 7 | AS12: 0.00 | AT12: 0.00
A13: 8 | AS13: 0.00 | AT13: 0.00
A14: 9 | AS14: 0.00 | AT14: 0.00
A15: 10 | AS15: 0.00 | AT15: 0.00
A16: 11 | AS16: 0.00 | AT16: 0.00
A17: 12 | AS17: 0.00 | AT17: 0.00
A18: 13 | AS18: 0.00 | AT18: 0.00
A19: 14 | AS19: 0.00 | AT19: 0.00
A20: 15 | AS20: 0.00 | AT20: 0.00
A21: 16 | AS21: 0.00 | AT21: 0.00
A22: 17 | AS22: 0.00 | AT22: 0.00
A23: 18 | AS23: 0.00 | AT23: 0.00
A24: 19 | AS24: 0.00 | AT24: 0.00
A25: 20 | AS25: 0.00 | AT25: 0.00
A26: 21 | AS26: 0.00 | AT26: 0.00
A27: 22 | AS27: 0.00 | AT27: 0.00
A28: 23 | AS28: 0.00 | AT28: 0.00
A29: 24 | AS29: 0.00 | AT29: 0.00
B30: среднее значение: | C30: =(C6+C7+C8+C9+C10+C11+C12+C13+C14+C15+C16+C17+C18+C19+C20+C21+C22+C23+C24+C25+C26+C27+C28+C29)/COUNTA($B$6:$B$29) -> 0.00 | D30: =(D6+D7+D8+D9+D10+D11+D12+D13+D14+D15+D16+D17+D18+D19+D20+D21+D22+D23+D24+D25+D26+D27+D28+D29)/COUNTA($B$6:$B$29) -> 0.00 | E30: 0.00 | F30: 0.00 | G30: 0.00 | H30: 0.00 | I30: 0.00 | J30: 0.00 | K30: 0.00 | L30: 0.00 | M30: 0.00 | N30: 0.00 | O30: 0.00 | P30: 0.00 | Q30: 0.00 | R30: 0.00 | S30: 0.00 | T30: 0.00 | U30: 0.00 | V30: 0.00 | W30: 0.00 | X30: 0.00 | Y30: 0.00 | Z30: 0.00 | AA30: 0.00 | AB30: 0.00 | AC30: 0.00 | AD30: 0.00 | AE30: 0.00 | AF30: 0.00 | AG30: 0.00 | AH30: 0.00 | AI30: 0.00 | AJ30: 0.00 | AK30: 0.00 | AL30: 0.00 | AM30: 0.00 | AN30: 0.00 | AO30: 0.00 | AP30: 0.00 | AQ30: 0.00 | AR30: 0.00 | AS30: =(C30+E30+G30+I30+K30+M30+O30+Q30+S30+U30+W30+Y30+AA30+AC30+AE30+AG30+AI30+AK30+AM30+AO30+AQ30)/21 -> 0.00 | AT30: =(D30+F30+H30+J30+L30+N30+P30+R30+T30+V30+X30+Z30+AB30+AD30+AF30+AH30+AJ30+AL30+AN30+AP30+AR30)/21 -> 0.00
B33: начало года
C34: всего | D34: норма | E34: ниже нормы | F34: низкий
B35: количество детей | C35: =COUNTA(B6:B29) -> 3 | D35: =COUNTIF(AS6:AS29,">=3,8") -> 0 | E35: =COUNTIFS(AS6:AS29,"<3,7",AS6:AS29,">=2,3") -> 0 | F35: =COUNTIFS(AS6:AS29,"<2,2",AS6:AS29,">0") -> 0
B36: % | C36: 100 | D36: =D35*C36/C35 -> 0 | E36: =E35*C36/C35 -> 0.0 | F36: =F35*C36/C35 -> 0.0
B39: конец года
C40: всего | D40: норма | E40: ниже нормы | F40: низкий
B41: количество детей | C41: =COUNTA(B5:B28) -> 3 | D41: =COUNTIF(AT6:AT29,">=3,8") -> 0 | E41: =COUNTIFS(AT6:AT29,"<3,7",AT6:AT29,">=2,3") -> 0 | F41: =COUNTIFS(AT6:AT29,"<2,2",AT6:AT29,">0") -> 0
B42: % | C42: 100 | D42: =D41*C42/C41 -> 0.0 | E42: =E41*C42/C41 -> 0.0 | F42: =F41*C42/C41 -> 0.0

Sheet РР-3
A1: НАПРАВЛЕНИЕ 3. ГРАММАТИЧЕСКИЙ СТРОЙ РЕЧИ | AM1: ОГЛАВЛЕНИЕ
A3: №п/п | B3: ФИ ребенка | C3: Образует и использует в речи существительные | K3: Образует и использует в речи глаголы | O3: Образует и использует в речи прилагательные | U3: Согласует прилагатель­ные и числительные с существительными | AA3: Умеет слставлять простые предложения | AI3: Умееет распространять простые предложения однородными членами | AK3: Умеет составлять сложносочиненные и сложноподчиненные предложения | AM3: Умеет считать слова в простом предложении из двух-трех слов - (без предлога) | AO3: Может сказать но заданию педагога слово, предложение | AQ3: среднее значение
C4: в единственном и множественном числе в Именительном падеже | E4: в косвенных падежах без предлога и с простыми предлогами | G4: с уменьшительно-ласкат. суффиксами | I4: с суффиксами -онок, -енок, -ат-, -ят- | K4: Настоящего времени | M4: Мужского и женского рода в прошедшем времени | O4: относительные | Q4: притяжательные | S4: С уменьшительно-ласкат. суффиксами | U4: в роде | W4: числе | Y4: падеже | AA4: по вопросам | AC4: по картинкам | AE4: по демонстрации действий | AG4: с противительными союзами
C5: н.г. | D5: к.г. | E5: н.г. | F5: к.г. | G5: н.г. | H5: к.г. | I5: н.г. | J5: к.г. | K5: н.г. | L5: к.г. | M5: н.г. | N5: к.г. | O5: н.г. | P5: к.г. | Q5: н.г. | R5: к.г. | S5: н.г. | T5: к.г. | U5: н.г. | V5: к.г. | W5: н.г. | X5: к.г. | Y5: н.г. | Z5: к.г. | AA5: н.г. | AB5: к.г. | AC5: н.г. | AD5: к.г. | AE5: н.г. | AF5: к.г. | AG5: н.г. | AH5: к.г. | AI5: н.г. | AJ5: к.г. | AK5: н.г. | AL5: к.г. | AM5: н.г. | AN5: к.г. | AO5: н.г. | AP5: к.г. | AQ5: н.г. | AR5: к.г.
A6: 1 | B6: Иванов | C6: 2 | D6: 3 | E6: 2 | F6: 3 | G6: 2 | H6: 4 | I6: 3 | J6: 4 | K6: 3 | L6: 5 | M6: 4 | N6: 5 | O6: 4 | P6: 5 | Q6: 3 | R6: 4 | S6: 2 | T6: 3 | U6: 2 | V6: 3 | W6: 2 | X6: 3 | Y6: 2 | Z6: 3 | AA6: 2 | AB6: 3 | AC6: 4 | AD6: 5 | AE6: 4 | AF6: 5 | AH6: 3 | AI6: 4 | AJ6: 3 | AK6: 4 | AL6: 3 | AM6: 4 | AN6: 3 | AO6: 4 | AP6: 5 | AQ6: =(C6+E6+G6+I6+K6+M6+O6+Q6+S6+U6+W6+Y6+AA6+AC6+AE6+AG6+AI6+AK6+AM6+AO6)/20 -> 2.85 | AR6: =(D6+F6+H6+J6+L6+N6+P6+R6+T6+V6+X6+Z6+AB6+AD6+AF6+AH6+AJ6+AL6+AN6+AP6)/20 -> 3.75
A7: 2 | B7: Петров | AQ7: =(C7+E7+G7+I7+K7+M7+O7+Q7+S7+U7+W7+Y7+AA7+AC7+AE7+AG7+AI7+AK7+AM7+AO7)/20 -> 0.00 | AR7: =(D7+F7+H7+J7+L7+N7+P7+R7+T7+V7+X7+Z7+AB7+AD7+AF7+AH7+AJ7+AL7+AN7+AP7)/20 -> 0.00
A8: 3 | B8: Сидоров | AQ8: 0.00 | AR8: 0.00
A9: 4 | AQ9: 0.00 | AR9: 0.00
A10: 5 | AQ10: 0.00 | AR10: 0.00
A11: 6 | AQ11: 0.00 | AR11: 0.00
A12: 7 | AQ12: 0.00 | AR12: 0.00
A13: 8 | AQ13: 0.00 | AR13: 0.00
A14: 9 | AQ14: 0.00 | AR14: 0.00
A15: 10 | AQ15: 0.00 | AR15: 0.00
A16: 11 | AQ16: 0.00 | AR16: 0.00
A17: 12 | AQ17: 0.00 | AR17: 0.00
A18: 13 | AQ18: 0.00 | AR18: 0.00
A19: 14 | AQ19: 0.00 | AR19: 0.00
A20: 15 | AQ20: 0.00 | AR20: 0.00
A21: 16 | AQ21: 0.00 | AR21: 0.00
A22: 17 | AQ22: 0.00 | AR22: 0.00
A23: 18 | AQ23: 0.00 | AR23: 0.00
A24: 19 | AQ24: 0.00 | AR24: 0.00
A25: 20 | AQ25: 0.00 | AR25: 0.00
A26: 21 | AQ26: 0.00 | AR26: 0.00
A27: 22 | AQ27: 0.00 | AR27: 0.00
A28: 23 | AQ28: 0.00 | AR28: 0.00
A29: 24 | AQ29: 0.00 | AR29: 0.00
B30: среднее значение: | C30: =(C6+C7+C8+C9+C10+C11+C12+C13+C14+C15+C16+C17+C18+C19+C20+C21+C22+C23+C24+C25+C26+C27+C28+C29)/COUNTA($B$6:$B$29) -> 0.67 | D30: =(D6+D7+D8+D9+D10+D11+D12+D13+D14+D15+D16+D17+D18+D19+D20+D21+D22+D23+D24+D25+D26+D27+D28+D29)/COUNTA($B$6:$B$29) -> 1.00 | E30: 0.67 | F30: 1.00 | G30: 0.67 | H30: 1.33 | I30: 1.00 | J30: 1.33 | K30: 1.00 | L30: 1.67 | M30: 1.33 | N30: 1.67 | O30: 1.33 | P30: 1.67 | Q30: 1.00 | R30: 1.33 | S30: 0.67 | T30: 1.00 | U30: 0.67 | V30: 1.00 | W30: 0.67 | X30: 1.00 | Y30: 0.67 | Z30: 1.00 | AA30: 0.67 | AB30: 1.00 | AC30: 1.33 | AD30: 1.67 | AE30: 1.33 | AF30: 1.67 | AG30: 0.00 | AH30: 1.00 | AI30: 1.33 | AJ30: 1.00 | AK30: 1.33 | AL30: 1.00 | AM30: 1.33 | AN30: 1.00 | AO30: 1.33 | AP30: 1.67 | AQ30: =(C30+E30+G30+I30+K30+M30+O30+Q30+S30+U30+W30+Y30+AA30+AC30+AE30+AG30+AI30+AK30+AM30+AO30)/20 -> 0.95 | AR30: =(D30+F30+H30+J30+L30+N30+P30+R30+T30+V30+X30+Z30+AB30+AD30+AF30+AH30+AJ30+AL30+AN30+AP30)/20 -> 1.25
B33: начало года
C34: всего | D34: норма | E34: ниже нормы | F34: низкий
B35: количество детей | C35: =COUNTA(B6:B29) -> 3 | D35: =COUNTIF(AQ6:AQ29,">=3,8") -> 0 | E35: =COUNTIFS(AQ6:AQ29,"<3,7",AQ6:AQ29,">=2,3") -> 1 | F35: =COUNTIFS(AU5:AU28,"<2,2",AU5:AU28,">0") -> 0
B36: % | C36: 100 | D36: =D35*C36/C35 -> 0 | E36: =E35*C36/C35 -> 33.3 | F36: =F35*C36/C35 -> 0.0
B39: конец года
C40: всего | D40: норма | E40: ниже нормы | F40: низкий
B41: количество детей | C41: =COUNTA(B5:B28) -> 3 | D41: =COUNTIF(AR6:AR29,">=3,8") -> 0 | E41: =COUNTIFS(AR6:AR29,"<3,7",AR6:AR29,">=2,3") -> 0 | F41: =COUNTIFS(AR6:AR29,"<2,2",AR6:AR29,">0") -> 0
B42: % | C42: 100 | D42: =D41*C42/C41 -> 0.0 | E42: =E41*C42/C41 -> 0.0 | F42: =F41*C42/C41 -> 0.0

Sheet РР-4
A1: НАПРАВЛЕНИЕ 4. СВЯЗНАЯ РЕЧЬ. ИНТЕРЕС К ХУДОЖЕСТВЕННОЙ ЛИТЕРАТУРЕ | AC1: ОГЛАВЛЕНИЕ
A3: №п/п | B3: ФИ ребенка | C3: Может составлять по образцу расссказы | I3: Может составлять по плану (мнемотаблице/коллективному плану) рассказы | O3: Может пересказывать знакомую сказку или короткий рассказ | Q3: Вступает в диалог и продуктивно его поддерживает | W3: Слушает произведение до конца, правильно отвечает на вопросы, подбирает иллюстрации к содержанию текста | Y3: Может определить жанр литературного произведения (сказка, рассказ, стихотворение) | AA3: Правильно отвечает на вопросы по прочитанному/ прослушанному тексту, даёт характеристику героев | AC3: Умеет пересказывать знакомые тексты со зрительной опорой | AE3: Выразительно рассказывает стихи | AG3: среднее значение
C4: описания | E4: по сюжетной картине | G4: по серии сюжетных картинок | I4: описания | K4: по сюжетной картине | M4: по серии сюжетных картинок | Q4: слушает собеседника до конца | S4: задает вопросы по теме диалога | U4: отвечает на вопрсы полно или кратко в зависимости от контекста
C5: н.г. | D5: к.г. | E5: н.г. | F5: к.г. | G5: н.г. | H5: к.г. | I5: н.г. | J5: к.г. | K5: н.г. | L5: к.г. | M5: н.г. | N5: к.г. | O5: н.г. | P5: к.г. | Q5: н.г. | R5: к.г. | S5: н.г. | T5: к.г. | U5: н.г. | V5: к.г. | W5: н.г. | X5: к.г. | Y5: н.г. | Z5: к.г. | AA5: н.г. | AB5: к.г. | AC5: н.г. | AD5: к.г. | AE5: н.г. | AF5: к.г. | AG5: н.г. | AH5: к.г.
A6: 1 | B6: Иванов | AG6: =(C6+E6+G6+I6+K6+M6+O6+Q6+S6+U6+W6+Y6+AA6+AC6+AE6)/15 -> 0.00 | AH6: =(D6+F6+H6+J6+L6+N6+P6+R6+T6+V6+X6+Z6+AB6+AD6+AF6)/15 -> 0.00
A7: 2 | B7: Петров | AG7: =(C7+E7+G7+I7+K7+M7+O7+Q7+S7+U7+W7+Y7+AA7+AC7+AE7)/15 -> 0.00 | AH7: =(D7+F7+H7+J7+L7+N7+P7+R7+T7+V7+X7+Z7+AB7+AD7+AF7)/15 -> 0.00
A8: 3 | B8: Сидоров | AG8: 0.00 | AH8: 0.00
A9: 4 | AG9: 0.00 | AH9: 0.00
A10: 5 | AG10: 0.00 | AH10: 0.00
A11: 6 | AG11: 0.00 | AH11: 0.00
A12: 7 | AG12: 0.00 | AH12: 0.00
A13: 8 | AG13: 0.00 | AH13: 0.00
A14: 9 | AG14: 0.00 | AH14: 0.00
A15: 10 | AG15: 0.00 | AH15: 0.00
A16: 11 | AG16: 0.00 | AH16: 0.00
A17: 12 | AG17: 0.00 | AH17: 0.00
A18: 13 | AG18: 0.00 | AH18: 0.00
A19: 14 | AG19: 0.00 | AH19: 0.00
A20: 15 | AG20: 0.00 | AH20: 0.00
A21: 16 | AG21: 0.00 | AH21: 0.00
A22: 17 | AG22: 0.00 | AH22: 0.00
A23: 18 | AG23: 0.00 | AH23: 0.00
A24: 19 | AG24: 0.00 | AH24: 0.00
A25: 20 | AG25: 0.00 | AH25: 0.00
A26: 21 | AG26: 0.00 | AH26: 0.00
A27: 22 | AG27: 0.00 | AH27: 0.00
A28: 23 | AG28: 0.00 | AH28: 0.00
A29: 24 | AG29: 0.00 | AH29: 0.00
B30: среднее значение: | C30: =(C6+C7+C8+C9+C10+C11+C12+C13+C14+C15+C16+C17+C18+C19+C20+C21+C22+C23+C24+C25+C26+C27+C28+C29)/COUNTA($B$6:$B$29) -> 0.00 | D30: =(D6+D7+D8+D9+D10+D11+D12+D13+D14+D15+D16+D17+D18+D19+D20+D21+D22+D23+D24+D25+D26+D27+D28+D29)/COUNTA($B$6:$B$29) -> 0.00 | E30: 0.00 | F30: 0.00 | G30: 0.00 | H30: 0.00 | I30: 0.00 | J30: 0.00 | K30: 0.00 | L30: 0.00 | M30: 0.00 | N30: 0.00 | O30: 0.00 | P30: 0.00 | Q30: 0.00 | R30: 0.00 | S30: 0.00 | T30: 0.00 | U30: 0.00 | V30: 0.00 | W30: 0.00 | X30: 0.00 | Y30: 0.00 | Z30: 0.00 | AA30: 0.00 | AB30: 0.00 | AC30: 0.00 | AD30: 0.00 | AE30: 0.00 | AF30: 0.00 | AG30: 0.00 | AH30: 0.00
B33: начало года
C34: всего | D34: норма | E34: ниже нормы | F34: низкий
B35: количество детей | C35: =COUNTA(B6:B29) -> 3 | D35: =COUNTIF(AG6:AG29,">=3,8") -> 0 | E35: =COUNTIFS(AG6:AG29,"<3,7",AG6:AG29,">=2,3") -> 0 | F35: =COUNTIFS(AG6:AG29,"<2,2",AG6:AG29,">0") -> 0
B36: % | C36: 100 | D36: =D35*C36/C35 -> 0 | E36: =E35*C36/C35 -> 0.0 | F36: =F35*C36/C35 -> 0.0
B39: конец года
C40: всего | D40: норма | E40: ниже нормы | F40: низкий
B41: количество детей | C41: =COUNTA(B5:B28) -> 3 | D41: =COUNTIF(AH6:AH29,">=3,8") -> 0 | E41: =COUNTIFS(AH6:AH29,"<3,7",AH6:AH29,">=2,3") -> 0 | F41: =COUNTIFS(AH6:AH29,"<2,2",AH6:AH29,">0") -> 0
B42: % | C42: 100 | D42: =D41*C42/C41 -> 0.0 | E42: =E41*C42/C41 -> 0.0 | F42: =F41*C42/C41 -> 0.0

Sheet ИТОГ РР
A1: Обобщение результатов педагогической диагностики по направлениям ОО «Речевое развитие»
F2: ОГЛАВЛЕНИЕ
B4: Формирование словаря | C4: Звуковая культура речи. Обучение грамоте | D4: Грамматический строй речи | E4: Связная речь. Интерес к художественной литературе | F4: Средний уровень речевого развития
B5: 1 | C5: 2 | D5: 3 | E5: 4 | F5: ср.ур.
A6: начало | B6: ='РР-1'!$AU$31 -> 0.00 | C6: ='РР-2'!AS30 -> 0.00 | D6: ='РР-3'!AQ30 -> 0.95 | E6: ='РР-4'!AG30 -> 0.00 | F6: =(B6+C6+D6+E6)/4 -> 0.24
A7: конец | B7: ='РР-1'!$AV$31 -> 0.00 | C7: ='РР-2'!AT30 -> 0.00 | D7: ='РР-3'!AR30 -> 1.25 | E7: ='РР-4'!AH30 -> 0.00 | F7: =(B7+C7+D7+E7)/4 -> 0.31
A28: ВЫВОДЫ:
A29: Начало учебного года:
A37: Конец учебного года:

Sheet ПР-1
A1: Образовательная область «Познавательное развитие»
A3: НАПРАВЛЕНИЕ 1. СЕНСОРНЫЕ ЭТАЛОНЫ И ПОЗНАВАТЕЛЬНЫЕ ДЕЙСТВИЯ. ОКРУЖАЮЩИЙ МИР. ПРИРОДА. | Y3: ОГЛАВЛЕНИЕ
A5: №п/п | B5: ФИ ребенка | C5: Называет основные цвета | E5: Называет оттенки цветов | G5: Может самостоятельно характеризовать свойства и качества предметов, определять цвет, величину, форму, назначение, детали и части предмета | I5: Может объяснить назначение бытовой техники | K5: Имеет элементарное представление об армии и профессиях военных | M5: Может определить профессии (5-7) подобрать к ним атрибуты | O5: Узнает и называет некоторые материалы (бумага, дерево, металл, пластмасса) | Q5: Называет времена года в правильной последовательности | S5: Правильно определяет принадлежность явлений природы по сезонам | U5: Знает н соблюдает некоторые правила поведения в природе | W5: Имеет элементарное представление о космосе, планетах | Y5: Правильно определяет последовательность частей суток, правильно их называет | AA5: Имеет представление о днях недели и называет их | AC5: среднее значение
C7: н.г. | D7: к.г. | E7: н.г. | F7: к.г. | G7: н.г. | H7: к.г. | I7: н.г. | J7: к.г. | K7: н.г. | L7: к.г. | M7: н.г. | N7: к.г. | O7: н.г. | P7: к.г. | Q7: н.г. | R7: к.г. | S7: н.г. | T7: к.г. | U7: н.г. | V7: к.г. | W7: н.г. | X7: к.г. | Y7: я | Z7: к.г. | AA7: н.г. | AB7: к.г. | AC7: н.г. | AD7: к.г.
A8: 1 | B8: Иванов | AC8: =(C8+E8+G8+I8+K8+M8+O8+Q8+S8+U8+W8+Y8+AA8)/13 -> 0.00 | AD8: =(D8+F8+H8+J8+L8+N8+P8+R8+T8+V8+X8+Z8+AB8)/13 -> 0.00
A9: 2 | B9: Петров | AC9: =(C9+E9+G9+I9+K9+M9+O9+Q9+S9+U9+W9+Y9+AA9)/13 -> 0.00 | AD9: 0.00
A10: 3 | B10: Сидоров | AC10: 0.00 | AD10: 0.00
A11: 4 | AC11: 0.00 | AD11: 0.00
A12: 5 | AC12: 0.00 | AD12: 0.00
A13: 6 | AC13: 0.00 | AD13: 0.00
A14: 7 | AC14: 0.00 | AD14: 0.00
A15: 8 | AC15: 0.00 | AD15: 0.00
A16: 9 | AC16: 0.00 | AD16: 0.00
A17: 10 | AC17: 0.00 | AD17: 0.00
A18: 11 | AC18: 0.00 | AD18: 0.00
A19: 12 | AC19: 0.00 | AD19: 0.00
A20: 13 | AC20: 0.00 | AD20: 0.00
A21: 14 | AC21: 0.00 | AD21: 0.00
A22: 15 | AC22: 0.00 | AD22: 0.00
A23: 16 | AC23: 0.00 | AD23: 0.00
A24: 17 | AC24: 0.00 | AD24: 0.00
A25: 18 | AC25: 0.00 | AD25: 0.00
A26: 19 | AC26: 0.00 | AD26: 0.00
A27: 20 | AC27: 0.00 | AD27: 0.00
A28: 21 | AC28: 0.00 | AD28: 0.00
A29: 22 | AC29: 0.00 | AD29: 0.00
A30: 23 | AC30: 0.00 | AD30: 0.00
A31: 24 | AC31: 0.00 | AD31: 0.00
B32: среднее значение: | C32: =(C8+C9+C10+C11+C12+C13+C14+C15+C16+C17+C18+C19+C20+C21+C22+C23+C24+C25+C26+C27+C28+C29+C30+C31)/COUNTA($B$8:$B$31) -> 0.00 | D32: =(D8+D9+D10+D11+D12+D13+D14+D15+D16+D17+D18+D19+D20+D21+D22+D23+D24+D25+D26+D27+D28+D29+D30+D31)/COUNTA($B$8:$B$31) -> 0.00 | E32: 0.00 | F32: 0.00 | G32: 0.00 | H32: 0.00 | I32: 0.00 | J32: 0.00 | K32: 0.00 | L32: 0.00 | M32: 0.00 | N32: 0.00 | O32: 0.00 | P32: 0.00 | Q32: 0.00 | R32: 0.00 | S32: 0.00 | T32: 0.00 | U32: 0.00 | V32: 0.00 | W32: 0.00 | X32: 0.00 | Y32: 0.00 | Z32: 0.00 | AA32: 0.00 | AB32: 0.00 | AC32: =(C32+E32+G32+I32+K32+M32+O32+Q32+S32+U32+W32+Y32+AA32)/13 -> 0.00 | AD32: =(D32+F32+H32+J32+L32+N32+P32+R32+T32+V32+X32+Z32+AB32)/13 -> 0.00
B36: начало года
C37: всего | D37: норма | E37: ниже нормы | F37: низкий
B38: количество детей | C38: =COUNTA(B8:B31) -> 3 | D38: =COUNTIF(AC8:AC31,">=3,8") -> 0 | E38: =COUNTIFS(AC8:AC31,"<3,7",AC8:AC31,">=2,3") -> 0 | F38: =COUNTIFS(AC8:AC31,"<,2,2",AC8:AC31,">0") -> 0
B39: % | C39: 100 | D39: =D38*C39/C38 -> 0 | E39: =E38*C39/C38 -> 0.0 | F39: =F38*C39/C38 -> 0.0
B42: конец года
C43: всего | D43: норма | E43: ниже нормы | F43: низкий
B44: количество детей | C44: =COUNTA(B8:B31) -> 3 | D44: =COUNTIF(AD8:AD31,">=3,8") -> 0 | E44: =COUNTIFS(AD8:AD31,"<3,7",AD8:AD31,">=2,3") -> 0 | F44: =COUNTIFS(AD8:AD31,"<2,2",AD8:AD31,">0") -> 0
B45: % | C45: 100 | D45: =D44*C45/C44 -> 0.0 | E45: =E44*C45/C44 -> 0.0 | F45: =F44*C45/C44 -> 0.0

Sheet ПР-2
A1: НАПРАВЛЕНИЕ 2. МАТЕМАТИЧЕСКИЕ ПРЕДСТАВЛЕНИЯ | AC1: ОГЛАВЛЕНИЕ
A3: №п/п | B3: ФИ ребенка | C3: Владеет навыком счета в прямом порядке до 10 | G3: считывает предметы из большего количества в пределах 10 | I3: Правильно отвечает на вопросы: Сколько всего? Который по счету? | K3: Умеет сравнивать рядом стоящие числа (со зрительной опорой) | M3: Может сравнивать множества и уравнивать их разными способами | O3: Умеет составлять числа из единиц в пределах 5 | Q3: Называет части, умеет сравнивать целое и часть | S3: Понимает, что результат счета не зависит от расположения предметов и направления счета | U3: Узнает и различает плоские и объем­ные геометрические фигуры (круг, овал, квадрат, прямоугольник, треугольник, шар, куб, цилиндр) | W3: Правильно собирает разрезные картинки (из 4 X частей, все виды разрезов) | Y3: Умеет ориентироваться на плане, схеме группы, определяет и называвает положенне предмета относительно другого (левее, правее, сзади и т. д.) | AA3: Умеет сравнивать предметы с помощбю условной меры по длине, шири­не, высоте | AC3: Умеет пользоваться сравнительными прилагательными (выше, ниже, шире, уже, длиннее, короче) | AE3: Группирует предметы по двум-трем признакам (цвету, форме, размеру, материалу) | AG3: среднее значение
C4: количественного счета | E4: порядкового счета
C5: н.г. | D5: к.г. | E5: н.г. | F5: к.г. | G5: н.г. | H5: к.г. | I5: н.г. | J5: к.г. | K5: н.г. | L5: к.г. | M5: н.г. | N5: к.г. | O5: н.г. | P5: к.г. | Q5: н.г. | R5: к.г. | S5: н.г. | T5: к.г. | U5: н.г. | V5: к.г. | W5: н.г. | X5: к.г. | Y5: н.г. | Z5: к.г. | AA5: н.г. | AB5: к.г. | AC5: н.г. | AD5: к.г. | AE5: н.г. | AF5: к.г. | AG5: н.г. | AH5: к.г.
A6: 1 | B6: Иванов | AG6: =(C6+E6+G6+I6+K6+M6+O6+Q6+S6+U6+W6+Y6+AA6+AC6+AE6)/15 -> 0.00 | AH6: =(D6+F6+H6+J6+L6+N6+P6+R6+T6+V6+X6+Z6+AB6+AD6+AF6)/15 -> 0.00
A7: 2 | B7: Петров | AG7: =(C7+E7+G7+I7+K7+M7+O7+Q7+S7+U7+W7+Y7+AA7+AC7+AE7)/15 -> 0.00 | AH7: 0.00
A8: 3 | B8: Сидоров | AG8: 0.00 | AH8: 0.00
A9: 4 | AG9: 0.00 | AH9: 0.00
A10: 5 | AG10: 0.00 | AH10: 0.00
A11: 6 | AG11: 0.00 | AH11: 0.00
A12: 7 | AG12: 0.00 | AH12: 0.00
A13: 8 | AG13: 0.00 | AH13: 0.00
A14: 9 | AG14: 0.00 | AH14: 0.00
A15: 10 | AG15: 0.00 | AH15: 0.00
A16: 11 | AG16: 0.00 | AH16: 0.00
A17: 12 | AG17: 0.00 | AH17: 0.00
A18: 13 | AG18: 0.00 | AH18: 0.00
A19: 14 | AG19: 0.00 | AH19: 0.00
A20: 15 | AG20: 0.00 | AH20: 0.00
A21: 16 | AG21: 0.00 | AH21: 0.00
A22: 17 | AG22: 0.00 | AH22: 0.00
A23: 18 | AG23: 0.00 | AH23: 0.00
A24: 19 | AG24: 0.00 | AH24: 0.00
A25: 20 | AG25: 0.00 | AH25: 0.00
A26: 21 | AG26: 0.00 | AH26: 0.00
A27: 22 | AG27: 0.00 | AH27: 0.00
A28: 23 | AG28: 0.00 | AH28: 0.00
A29: 24 | AG29: 0.00 | AH29: 0.00
B30: среднее значение: | C30: =(C6+C7+C8+C9+C10+C11+C12+C13+C14+C15+C16+C17+C18+C19+C20+C21+C22+C23+C24+C25+C26+C27+C28+C29)/COUNTA($B$6:$B$29) -> 0.00 | D30: =(D6+D7+D8+D9+D10+D11+D12+D13+D14+D15+D16+D17+D18+D19+D20+D21+D22+D23+D24+D25+D26+D27+D28+D29)/COUNTA($B$6:$B$29) -> 0.00 | E30: 0.00 | F30: 0.00 | G30: 0.00 | H30: 0.00 | I30: 0.00 | J30: 0.00 | K30: 0.00 | L30: 0.00 | M30: 0.00 | N30: 0.00 | O30: 0.00 | P30: 0.00 | Q30: 0.00 | R30: 0.00 | S30: 0.00 | T30: 0.00 | U30: 0.00 | V30: 0.00 | W30: 0.00 | X30: 0.00 | Y30: 0.00 | Z30: 0.00 | AA30: 0.00 | AB30: 0.00 | AC30: 0.00 | AD30: 0.00 | AE30: 0.00 | AF30: 0.00 | AG30: =(C30+E30+G30+I30+K30+M30+O30+Q30+S30+U30+W30+Y30+AA30+AC30+AE30)/15 -> 0.00 | AH30: =(D30+F30+H30+J30+L30+N30+P30+R30+T30+V30+X30+Z30+AB30+AD30+AF30)/15 -> 0.00
B33: начало года
C34: всего | D34: норма | E34: ниже нормы | F34: низкий
B35: количество детей | C35: =COUNTA(B6:B29) -> 3 | D35: =COUNTIF(AG6:AG29,">=3,8") -> 0 | E35: =COUNTIFS(AG6:AG29,"<3,7",AG6:AG29,">=2,3") -> 0 | F35: =COUNTIFS(AG6:AG29,"<2,2",AG6:AG29,">0") -> 0
B36: % | C36: 100 | D36: =D35*C36/C35 -> 0 | E36: =E35*C36/C35 -> 0.0 | F36: =F35*C36/C35 -> 0.0
B39: конец года
C40: всего | D40: норма | E40: ниже нормы | F40: низкий
B41: количество детей | C41: =COUNTA(B5:B28) -> 3 | D41: =COUNTIF(AH6:AH29,">=3,8") -> 0 | E41: =COUNTIFS(AH6:AH29,"<3,7",AH6:AH29,">=2,3") -> 0 | F41: =COUNTIFS(AH6:AH29,"<2,2",AH6:AH29,">0") -> 0
B42: % | C42: 100 | D42: =D41*C42/C41 -> 0.0 | E42: =E41*C42/C41 -> 0.0 | F42: =F41*C42/C41 -> 0.0

Sheet ИТОГ ПР
B1: Обобщение результатов педагогической диагностики по направлениям
B2: ОО «Познавательное развитие»
F3: ОГЛАВЛЕНИЕ
C4: Сенсорные эталоны и познавательные действия. Окружающий мир. Природа. | D4: Математические представления | E4: Средний уровень
C5: ФЦКМ | D5: ФЭМП | E5: ср.ур.
B6: начало | C6: ='ПР-1'!AC32 -> 0.00 | D6: ='ПР-2'!AG30 -> 0.00 | E6: =(C6+D6)/2 -> 0.00
B7: конец | C7: ='ПР-1'!AD32 -> 0.00 | D7: ='ПР-2'!AH30 -> 0.00 | E7: =(C7+D7)/2 -> 0.00
A28: ВЫВОДЫ:
A29: Начало учебного года:
A37: Конец учебного года:

Sheet СК-1
B1: Образовательная область «Социально-коммуникативное развитие»
B3: НАПРАВЛЕНИЕ 1,2. СОЦИАЛЬНЫЕ ОТНОШЕНИЯ. ФОРМИРОВАНИЕ ОСНОВ ГРАЖДАНСТВЕННОСТИ И ПАРТИОТИЗМА. | AA3: ОГЛАВЛЕНИЕ
B5: №п/п | C5: ФИ ребенка | D5: Понимает эмоциональное состояние, умеет выражать сочувствие и оказывать помощь, заботу в социально приемлимом виде | F5: Понимает различия в правилах поведения мальчиков и девочек, демонстрирует правильные образцы поведения | H5: Вречи использует вежливые слова (доброе утро, добрый вечер, хорошего дня, будьте здоровы, пожалуйста, извините, спасибо) | J5: Узнает и называет некоторые достопримечательности города | L5: Узнает и называет государственные символы (герб, флаг) и столицу РФ по фото (Кремль, Красная площадь) | N5: Соблюдает правила совместных со сверстниками игр (сюжетно-ролевые, эстафеты, настольно-печатные) | P5: Использует предмсты -заместители в самостоятельной игре | R5: Правильно оценивает свои поступки и поступки других | T5: Самообслуживание полностью сформировано | V5: Хочет участвовать в хозяйственно­бытовой деятельности, наводить порядок в группе и на участке, выполнять обязанности дежурного но столовой, на заня1иях, в уголке природы | X5: Выполняет трудовые поручения, выбирает необходимые орудия груда и отслеживает результат (выполнил / не выполнил) | Z5: Соблюдает правила этикета за столом, при встрече и прощании, при просьбе | AB5: Проявляет интерес к ручному груду, планирует свою деятельность, адекватно оценивает результат | AD5: среднее значение
D7: н.г. | E7: к.г. | F7: н.г. | G7: к.г. | H7: н.г. | I7: к.г. | J7: н.г. | K7: к.г. | L7: н.г. | M7: к.г. | N7: н.г. | O7: к.г. | P7: н.г. | Q7: к.г. | R7: н.г. | S7: к.г. | T7: н.г. | U7: к.г. | V7: н.г. | W7: к.г. | X7: н.г. | Y7: к.г. | Z7: н.г. | AA7: к.г. | AB7: н.г. | AC7: к.г. | AD7: н.г. | AE7: к.г.
B8: 1 | C8: Иванов | AD8: =(D8+F8+H8+J8+L8+N8+P8+R8+T8+V8+X8+Z8+AB8)/13 -> 0.00 | AE8: =(E8+G8+I8+K8+M8+O8+Q8+S8+U8+W8+Y8+AA8+AC8)/13 -> 0.00
B9: 2 | C9: Петров | AD9: =(D9+F9+H9+J9+L9+N9+P9+R9+T9+V9+X9+Z9+AB9)/13 -> 0.00 | AE9: 0.00
B10: 3 | C10: Сидоров | AD10: 0.00 | AE10: 0.00
B11: 4 | AD11: 0.00 | AE11: 0.00
B12: 5 | AD12: 0.00 | AE12: 0.00
B13: 6 | AD13: 0.00 | AE13: 0.00
B14: 7 | AD14: 0.00 | AE14: 0.00
B15: 8 | AD15: 0.00 | AE15: 0.00
B16: 9 | AD16: 0.00 | AE16: 0.00
B17: 10 | AD17: 0.00 | AE17: 0.00
B18: 11 | AD18: 0.00 | AE18: 0.00
B19: 12 | AD19: 0.00 | AE19: 0.00
B20: 13 | AD20: 0.00 | AE20: 0.00
B21: 14 | AD21: 0.00 | AE21: 0.00
B22: 15 | AD22: 0.00 | AE22: 0.00
B23: 16 | AD23: 0.00 | AE23: 0.00
B24: 17 | AD24: 0.00 | AE24: 0.00
B25: 18 | AD25: 0.00 | AE25: 0.00
B26: 19 | AD26: 0.00 | AE26: 0.00
B27: 20 | AD27: 0.00 | AE27: 0.00
B28: 21 | AD28: 0.00 | AE28: 0.00
B29: 22 | AD29: 0.00 | AE29: 0.00
B30: 23 | AD30: 0.00 | AE30: 0.00
B31: 24 | AD31: 0.00 | AE31: 0.00
C32: среднее значение: | D32: =(D8+D9+D10+D11+D12+D13+D14+D15+D16+D17+D18+D19+D20+D21+D22+D23+D24+D25+D26+D27+D28+D29+D30+D31)/COUNTA($C$8:$C$31) -> 0.00 | E32: =(E8+E9+E10+E11+E12+E13+E14+E15+E16+E17+E18+E19+E20+E21+E22+E23+E24+E25+E26+E27+E28+E29+E30+E31)/COUNTA($C$8:$C$31) -> 0.00 | F32: 0.00 | G32: 0.00 | H32: 0.00 | I32: 0.00 | J32: 0.00 | K32: 0.00 | L32: 0.00 | M32: 0.00 | N32: 0.00 | O32: 0.00 | P32: 0.00 | Q32: 0.00 | R32: 0.00 | S32: 0.00 | T32: 0.00 | U32: 0.00 | V32: 0.00 | W32: 0.00 | X32: 0.00 | Y32: 0.00 | Z32: 0.00 | AA32: 0.00 | AB32: 0.00 | AC32: 0.00 | AD32: =(D32+F32+H32+J32+L32+N32+P32+R32+T32+V32+X32+Z32+AB32)/13 -> 0.00 | AE32: =(E32+G32+I32+K32+M32+O32+Q32+S32+U32+W32+Y32+AA32+AC32)/13 -> 0.00
C36: начало года
D37: всего | E37: норма | F37: ниже нормы | G37: низкий
C38: количество детей | D38: =COUNTA(C8:C31) -> 3 | E38: =COUNTIF(AD8:AD31,">=3,8") -> 0 | F38: =COUNTIFS(AD8:AD31,"<3,7",AD8:AD31,">=2,3") -> 0 | G38: =COUNTIFS(AD8:AD31,"<2,2",AD8:AD31,">0") -> 0
C39: % | D39: 100 | E39: =E38*D39/D38 -> 0 | F39: =F38*D39/D38 -> 0.0 | G39: =G38*D39/D38 -> 0.0
C42: конец года
D43: всего | E43: норма | F43: ниже нормы | G43: низкий
C44: количество детей | D44: =COUNTA(C8:C31) -> 3 | E44: =COUNTIF(AE8:AE31,">=3,8") -> 0 | F44: =COUNTIFS(AE8:AE31,"<3,7",AE8:AE31,">=2,3") -> 0 | G44: =COUNTIFS(AE8:AE31,"<2,2",AE8:AE31,">0") -> 0
C45: % | D45: 100 | E45: =E44*D45/D44 -> 0.0 | F45: =F44*D45/D44 -> 0.0 | G45: =G44*D45/D44 -> 0.0

Sheet СК-2
A1: Образовательная область «Социально-коммуникативное развитие»
A3: НАПРАВЛЕНИЕ 3. ТРУДОВОЕ ВОСПИТАНИЕ | P3: ОГЛАВЛЕНИЕ
A5: №п/п | B5: ФИ ребенка | C5: Имеет представление о разных видах труда (производственный, непроизводственный) | E5: Знает правила обращения с инструментами и бытовой техникой | G5: Стремится оказывать посильную помощь взрослым | I5: Переносит знания о труде взрослых в сюжетно-ролевые игры и в свой труд | K5: Знает о назначении рекламы | M5: Различает достоинство купюр, умеет считать в пределах 10 | O5: Имеет представления о доходе и его динамике, о расходах и их многообразии. | Q5: среднее значение
C7: н.г. | D7: к.г. | E7: н.г. | F7: к.г. | G7: н.г. | H7: к.г. | I7: н.г. | J7: к.г. | K7: н.г. | L7: к.г. | M7: н.г. | N7: к.г. | O7: н.г. | P7: к.г. | Q7: н.г. | R7: к.г.
A8: 1 | B8: Иванов | C8: 2 | D8: 3 | E8: 3 | F8: 4 | G8: 3 | H8: 4 | I8: 3 | J8: 5 | K8: 2 | L8: 3 | M8: 3 | N8: 4 | O8: 5 | P8: 5 | Q8: =(C8+E8+G8+I8+K8+M8+O8)/7 -> 3.00 | R8: =(D8+F8+H8+J8+L8+N8+P8)/7 -> 4.00
A9: 2 | B9: Петров | Q9: =(C9+E9+G9+I9+K9+M9+O9)/7 -> 0.00 | R9: 0.00
A10: 3 | B10: Сидоров | Q10: 0.00 | R10: 0.00
A11: 4 | Q11: 0.00 | R11: 0.00
A12: 5 | Q12: 0.00 | R12: 0.00
A13: 6 | Q13: 0.00 | R13: 0.00
A14: 7 | Q14: 0.00 | R14: 0.00
A15: 8 | Q15: 0.00 | R15: 0.00
A16: 9 | Q16: 0.00 | R16: 0.00
A17: 10 | Q17: 0.00 | R17: 0.00
A18: 11 | Q18: 0.00 | R18: 0.00
A19: 12 | Q19: 0.00 | R19: 0.00
A20: 13 | Q20: 0.00 | R20: 0.00
A21: 14 | Q21: 0.00 | R21: 0.00
A22: 15 | Q22: 0.00 | R22: 0.00
A23: 16 | Q23: 0.00 | R23: 0.00
A24: 17 | Q24: 0.00 | R24: 0.00
A25: 18 | Q25: 0.00 | R25: 0.00
A26: 19 | Q26: 0.00 | R26: 0.00
A27: 20 | Q27: 0.00 | R27: 0.00
A28: 21 | Q28: 0.00 | R28: 0.00
A29: 22 | Q29: 0.00 | R29: 0.00
A30: 23 | Q30: 0.00 | R30: 0.00
A31: 24 | Q31: 0.00 | R31: 0.00
B32: среднее значение: | C32: =(C8+C9+C10+C11+C12+C13+C14+C15+C16+C17+C18+C19+C20+C21+C22+C23+C24+C25+C26+C27+C28+C29+C30+C31)/COUNTA($B$8:$B$31) -> 0.67 | D32: =(D8+D9+D10+D11+D12+D13+D14+D15+D16+D17+D18+D19+D20+D21+D22+D23+D24+D25+D26+D27+D28+D29+D30+D31)/COUNTA($B$8:$B$31) -> 1.00 | E32: 1.00 | F32: 1.33 | G32: 1.00 | H32: 1.33 | I32: 1.00 | J32: 1.67 | K32: 0.67 | L32: 1.00 | M32: 1.00 | N32: 1.33 | O32: 1.67 | P32: 1.67 | Q32: =(C32+E32+G32+I32+K32+M32+O32)/7 -> 1.00 | R32: =(D32+F32+H32+J32+L32+N32+P32)/7 -> 1.33
B36: начало года
C37: всего | D37: норма | E37: ниже нормы | F37: низкий
B38: количество детей | C38: =COUNTA(B8:B31) -> 3 | D38: =COUNTIF(Q8:Q31,">=3,8") -> 0 | E38: =COUNTIFS(Q8:Q31,"<3,7",Q8:Q31,">=2,3") -> 1 | F38: =COUNTIFS(Q8:Q31,"<2,2",Q8:Q31,">0") -> 0
B39: % | C39: 100 | D39: =D38*C39/C38 -> 0 | E39: =E38*C39/C38 -> 33.3 | F39: =F38*C39/C38 -> 0.0
B42: конец года
C43: всего | D43: норма | E43: ниже нормы | F43: низкий
B44: количество детей | C44: =COUNTA(B8:B31) -> 3 | D44: =COUNTIF(R8:R31,">=3,8") -> 1 | E44: =COUNTIFS(R8:R31,"<3,7",R8:R31,">=2,3") -> 0 | F44: =COUNTIFS(R8:R31,"<2,2",R8:R31,">0") -> 0
B45: % | C45: 100 | D45: =D44*C45/C44 -> 33.3 | E45: =E44*C45/C44 -> 0.0 | F45: =F44*C45/C44 -> 0.0

Sheet СК-3
A1: НАПРАВЛЕНИЕ 4. ФОРМИРОВАНИЕ БЕЗОПАСНОГО ПОВЕДЕНИЯ
X2: ОГЛАВЛЕНИЕ
A3: №п/п | B3: ФИ ребенка | C3: Может опознать специальный транспорт и объяснить свой выбор | E3: Знает и называет некоторые дорожные знаки («Дети». «Пешеходный переход». «Подземный пешеходный переход». «Остановка обществен­ного транспорта». «Велосипедная дорожка») | G3: Правильно называет свой домашний адрес. Телефон родителя. Ф. И. О. родителя (родителей, законных представителей) | I3: Соблюдает правила безопасного поведения | Q3: среднее значение
I4: в группе | K4: на прогулке | M4: с незнакомыми людьми | O4: с бродячими животными
C5: н.г. | D5: к.г. | E5: н.г. | F5: к.г. | G5: н.г. | H5: к.г. | I5: н.г. | J5: к.г. | K5: н.г. | L5: к.г. | M5: н.г. | N5: к.г. | O5: н.г. | P5: к.г. | Q5: н.г. | R5: к.г.
A6: 1 | B6: Иванов | Q6: =(C6+E6+G6+I6+K6+M6+O6)/7 -> 0.00 | R6: =(D6+F6+H6+J6+L6+N6+P6)/7 -> 0.00
A7: 2 | B7: Петров | Q7: =(C7+E7+G7+I7+K7+M7+O7)/7 -> 0.00 | R7: 0.00
A8: 3 | B8: Сидоров | Q8: 0.00 | R8: 0.00
A9: 4 | Q9: 0.00 | R9: 0.00
A10: 5 | Q10: 0.00 | R10: 0.00
A11: 6 | Q11: 0.00 | R11: 0.00
A12: 7 | Q12: 0.00 | R12: 0.00
A13: 8 | Q13: 0.00 | R13: 0.00
A14: 9 | Q14: 0.00 | R14: 0.00
A15: 10 | Q15: 0.00 | R15: 0.00
A16: 11 | Q16: 0.00 | R16: 0.00
A17: 12 | Q17: 0.00 | R17: 0.00
A18: 13 | Q18: 0.00 | R18: 0.00
A19: 14 | Q19: 0.00 | R19: 0.00
A20: 15 | Q20: 0.00 | R20: 0.00
A21: 16 | Q21: 0.00 | R21: 0.00
A22: 17 | Q22: 0.00 | R22: 0.00
A23: 18 | Q23: 0.00 | R23: 0.00
A24: 19 | Q24: 0.00 | R24: 0.00
A25: 20 | Q25: 0.00 | R25: 0.00
A26: 21 | Q26: 0.00 | R26: 0.00
A27: 22 | Q27: 0.00 | R27: 0.00
A28: 23 | Q28: 0.00 | R28: 0.00
A29: 24 | Q29: 0.00 | R29: 0.00
B30: среднее значение: | C30: =(C6+C7+C8+C9+C10+C11+C12+C13+C14+C15+C16+C17+C18+C19+C20+C21+C22+C23+C24+C25+C26+C27+C28+C29)/COUNTA($B$6:$B$29) -> 0.00 | D30: =(D6+D7+D8+D9+D10+D11+D12+D13+D14+D15+D16+D17+D18+D19+D20+D21+D22+D23+D24+D25+D26+D27+D28+D29)/COUNTA($B$6:$B$29) -> 0.00 | E30: 0.00 | F30: 0.00 | G30: 0.00 | H30: 0.00 | I30: 0.00 | J30: 0.00 | K30: 0.00 | L30: 0.00 | M30: 0.00 | N30: 0.00 | O30: 0.00 | P30: 0.00 | Q30: =(C30+E30+G30+I30+K30+M30+O30)/7 -> 0.00 | R30: =(D30+F30+H30+J30+L30+N30+P30)/7 -> 0.00
B33: начало года
C34: всего | D34: норма | E34: ниже нормы | F34: низкий
B35: количество детей | C35: =COUNTA(B6:B29) -> 3 | D35: =COUNTIF(Q6:Q29,">=3,8") -> 0 | E35: =COUNTIFS(Q6:Q29,"<3,7",Q6:Q29,">=2,3") -> 0 | F35: =COUNTIFS(Q6:Q29,"<2,2",Q6:Q29,">0") -> 0
B36: % | C36: 100 | D36: =D35*C36/C35 -> 0 | E36: =E35*C36/C35 -> 0.0 | F36: =F35*C36/C35 -> 0.0
B39: конец года
C40: всего | D40: норма | E40: ниже нормы | F40: низкий
B41: количество детей | C41: =COUNTA(B5:B28) -> 3 | D41: =COUNTIF(R6:R29,">=3,8") -> 0 | E41: =COUNTIFS(R6:R29,"<3,7",R6:R29,">=2,3") -> 0 | F41: =COUNTIFS(R6:R29,"<2,2",R6:R29,">0") -> 0
B42: % | C42: 100 | D42: =D41*C42/C41 -> 0.0 | E42: =E41*C42/C41 -> 0.0 | F42: =F41*C42/C41 -> 0.0

Sheet ИТОГ СК
B1: Обобщение результатов педагогической диагностики по направлениям
B2: ОО «Социально-коммуникативное развитие»
G3: ОГЛАВЛЕНИЕ
C4: Социальные отношения. Формирование основ гражданственности и патриотизма | D4: Трудовое воспитание | E4: Формирование безопасного поведения | F4: Средний балл/уровень (итоговый)
C5: 1 | D5: 2 | E5: 3 | F5: ср.ур.
B6: начало | C6: ='СК-1'!AD32 -> 0.00 | D6: ='СК-2'!Q32 -> 1.00 | E6: ='СК-3'!Q30 -> 0.00 | F6: =(C6+D6+E6)/3 -> 0.33
B7: конец | C7: ='СК-1'!AE32 -> 0.00 | D7: ='СК-2'!R32 -> 1.33 | E7: ='СК-3'!R30 -> 0.00 | F7: =(C7+D7+E7)/3 -> 0.44
A29: ВЫВОДЫ:
A30: Начало уч.года:
A38: Конец уч.года:

Sheet ХЭ-1
A1: Образовательная область «Художественно-эстетическое развитие»
A3: НАПРАВЛЕНИЕ I. ПРИОБЩЕНИЕ К ИСКУССТВУ | P3: ОГЛАВЛЕНИЕ
A5: №п/п | B5: ФИ ребенка | C5: Вделяет, называет, группирует произведения по видам искусства (литература, музыка, изобразительное искусство, архитектура, балет, театр, цирк, фотография) | E5: Знает и называет материалы для разных видов художественной деятельности | G5: Умеет назвать вид художественной деятельности, профессию творческих людей | I5: Знает и называет некоторых художникв, композиторов | K5: Знает виды и жанры фольклора | M5: Эмоционально отзывчив напроизведения искусства | O5: Принимает активное участие в художественной деятельности | Q5: среднее значение
C7: н.г. | D7: к.г. | E7: н.г. | F7: к.г. | G7: н.г. | H7: к.г. | I7: н.г. | J7: к.г. | K7: н.г. | L7: к.г. | M7: н.г. | N7: к.г. | O7: н.г. | P7: к.г. | Q7: н.г. | R7: к.г.
A8: 1 | B8: Иванов | Q8: =(C8+E8+G8+I8+K8+M8+O8)/7 -> 0.00 | R8: =(D8+F8+H8+J8+L8+N8+P8)/7 -> 0.00
A9: 2 | B9: Петров | Q9: =(C9+E9+G9+I9+K9+M9+O9)/7 -> 0.00 | R9: 0.00
A10: 3 | B10: Сидоров | Q10: 0.00 | R10: 0.00
A11: 4 | Q11: 0.00 | R11: 0.00
A12: 5 | Q12: 0.00 | R12: 0.00
A13: 6 | Q13: 0.00 | R13: 0.00
A14: 7 | Q14: 0.00 | R14: 0.00
A15: 8 | Q15: 0.00 | R15: 0.00
A16: 9 | Q16: 0.00 | R16: 0.00
A17: 10 | Q17: 0.00 | R17: 0.00
A18: 11 | Q18: 0.00 | R18: 0.00
A19: 12 | Q19: 0.00 | R19: 0.00
A20: 13 | Q20: 0.00 | R20: 0.00
A21: 14 | Q21: 0.00 | R21: 0.00
A22: 15 | Q22: 0.00 | R22: 0.00
A23: 16 | Q23: 0.00 | R23: 0.00
A24: 17 | Q24: 0.00 | R24: 0.00
A25: 18 | Q25: 0.00 | R25: 0.00
A26: 19 | Q26: 0.00 | R26: 0.00
A27: 20 | Q27: 0.00 | R27: 0.00
A28: 21 | Q28: 0.00 | R28: 0.00
A29: 22 | Q29: 0.00 | R29: 0.00
A30: 23 | Q30: 0.00 | R30: 0.00
A31: 24 | Q31: 0.00 | R31: 0.00
B32: среднее значение: | C32: =(C8+C9+C10+C11+C12+C13+C14+C15+C16+C17+C18+C19+C20+C21+C22+C23+C24+C25+C26+C27+C28+C29+C30+C31)/COUNTA($B$8:$B$31) -> 0.00 | D32: =(D8+D9+D10+D11+D12+D13+D14+D15+D16+D17+D18+D19+D20+D21+D22+D23+D24+D25+D26+D27+D28+D29+D30+D31)/COUNTA($B$8:$B$31) -> 0.00 | E32: 0.00 | F32: 0.00 | G32: 0.00 | H32: 0.00 | I32: 0.00 | J32: 0.00 | K32: 0.00 | L32: 0.00 | M32: 0.00 | N32: 0.00 | O32: 0.00 | P32: 0.00 | Q32: =(C32+E32+G32+I32+K32+M32+O32)/7 -> 0.00 | R32: =(D32+F32+H32+J32+L32+N32+P32)/7 -> 0.00
B36: начало года
C37: всего | D37: норма | E37: ниже нормы | F37: низкий
B38: количество детей | C38: =COUNTA(B8:B31) -> 3 | D38: =COUNTIF(Q8:Q31,">=3,8") -> 0 | E38: =COUNTIFS(Q8:Q31,"<3,7",Q8:Q31,">=2,3") -> 0 | F38: =COUNTIFS(Q8:Q31,"<2,2",Q8:Q31,">0") -> 0
B39: % | C39: 100 | D39: =D38*C39/C38 -> 0.00 | E39: =E38*C39/C38 -> 0.00 | F39: =F38*C39/C38 -> 0.00
B42: конец года
C43: всего | D43: норма | E43: ниже нормы | F43: низкий
B44: количество детей | C44: =COUNTA(B8:B31) -> 3 | D44: =COUNTIF(R8:R31,">=3,8") -> 0 | E44: =COUNTIFS(R8:R31,"<3,7",R8:R31,">=2,3") -> 0 | F44: =COUNTIFS(R8:R31,"<2,2",R8:R31,">0") -> 0
B45: % | C45: 100 | D45: =D44*C45/C44 -> 0.00 | E45: =E44*C45/C44 -> 0.00 | F45: =F44*C45/C44 -> 0.00

Sheet ХЭ-2
B1: НАПРАВЛЕНИЕ 2. КОНСТРУКТИВНАЯ ДЕЯТЕЛЬНОСТЬ | P1: ОГЛАВЛЕНИЕ
B3: №п/п | C3: ФИ ребенка | D3: Умеет выделять и называть части построек, определить их назначение и пространственное расположение | F3: Может собирать разрезные картинки из 6 и более частей с разными видами разрезов, кубики — из 9 | H3: Умеет создавать узоры из палочек, мозаики по схеме и по инструкции | J3: Умеет строить из разных конструкторов постройки по образцу, схеме, описанию | L3: Умеет сгибать лист бумаги вчетверо,создавать объемные фигуры (корзинка, кубик, лодочка) | N3: среднее значение
D5: н.г. | E5: к.г. | F5: н.г. | G5: к.г. | H5: н.г. | I5: к.г. | J5: н.г. | K5: к.г. | L5: н.г. | M5: к.г. | N5: н.г. | O5: к.г.
B6: 1 | C6: Иванов | N6: =(D6+F6+H6+J6+L6)/5 -> 0.00 | O6: =(E6+G6+I6+K6+M6)/5 -> 0.00
B7: 2 | C7: Петров | N7: =(D7+F7+H7+J7+L7)/5 -> 0.00 | O7: 0.00
B8: 3 | C8: Сидоров | N8: 0.00 | O8: 0.00
B9: 4 | N9: 0.00 | O9: 0.00
B10: 5 | N10: 0.00 | O10: 0.00
B11: 6 | N11: 0.00 | O11: 0.00
B12: 7 | N12: 0.00 | O12: 0.00
B13: 8 | N13: 0.00 | O13: 0.00
B14: 9 | N14: 0.00 | O14: 0.00
B15: 10 | N15: 0.00 | O15: 0.00
B16: 11 | N16: 0.00 | O16: 0.00
B17: 12 | N17: 0.00 | O17: 0.00
B18: 13 | N18: 0.00 | O18: 0.00
B19: 14 | N19: 0.00 | O19: 0.00
B20: 15 | N20: 0.00 | O20: 0.00
B21: 16 | N21: 0.00 | O21: 0.00
B22: 17 | N22: 0.00 | O22: 0.00
B23: 18 | N23: 0.00 | O23: 0.00
B24: 19 | N24: 0.00 | O24: 0.00
B25: 20 | N25: 0.00 | O25: 0.00
B26: 21 | N26: 0.00 | O26: 0.00
B27: 22 | N27: 0.00 | O27: 0.00
B28: 23 | N28: 0.00 | O28: 0.00
B29: 24 | N29: 0.00 | O29: 0.00
C30: среднее значение: | D30: =(D6+D7+D8+D9+D10+D11+D12+D13+D14+D15+D16+D17+D18+D19+D20+D21+D22+D23+D24+D25+D26+D27+D28+D29)/COUNTA($C$6:$C$29) -> 0.00 | E30: =(E6+E7+E8+E9+E10+E11+E12+E13+E14+E15+E16+E17+E18+E19+E20+E21+E22+E23+E24+E25+E26+E27+E28+E29)/COUNTA($C$6:$C$29) -> 0.00 | F30: 0.00 | G30: 0.00 | H30: 0.00 | I30: 0.00 | J30: 0.00 | K30: 0.00 | L30: 0.00 | M30: 0.00 | N30: =(D30+F30+H30+J30+L30)/5 -> 0.00 | O30: =(E30+G30+I30+K30+M30)/5 -> 0.00
C33: начало года
D34: всего | E34: норма | F34: ниже нормы | G34: низкий
C35: количество детей | D35: =COUNTA(C6:C29) -> 3 | E35: =COUNTIF(N6:N29,">=3,8") -> 0 | F35: =COUNTIFS(N6:N29,"<3,7",N6:N29,">=2,3") -> 0 | G35: =COUNTIFS(R5:R28,"<2,2",R5:R28,">0") -> 0
C36: % | D36: 100 | E36: =E35*D36/D35 -> 0.00 | F36: =F35*D36/D35 -> 0.00 | G36: =G35*D36/D35 -> 0.00
C39: конец года
D40: всего | E40: норма | F40: ниже нормы | G40: низкий
C41: количество детей | D41: =COUNTA(C5:C28) -> 3 | E41: =COUNTIF(O6:O29,">=3,8") -> 0 | F41: =COUNTIFS(O6:O29,"<3,7",O6:O29,">=2,3") -> 0 | G41: =COUNTIFS(O6:O29,"<2,2",O6:O29,">0") -> 0
C42: % | D42: 100 | E42: =E41*D42/D41 -> 0.00 | F42: =F41*D42/D41 -> 0.00 | G42: =G41*D42/D41 -> 0.00

Sheet ХЭ-3
A1: НАПРАВЛЕНИЕ 3. ИЗОБРАЗИТЕЛЬНАЯ ДЕЯТЕЛЬНОСТЬ | AC1: ОГЛАВЛЕНИЕ
A3: №п/п | B3: ФИ ребенка | C3: Рисование | K3: Аппликация | Q3: Лепка | W3: Прикладное творчество | AE3: среднее значение
C4: Правильно держит карандаш, кисть, соблюдает алгоритм рисования красками | E4: В рисунках есть изображение предметов и явлений, сюжетные композиции | G4: Передает в рисунке движение, правильно располагает в пространстве | I4: Правильно называет некоторые росписи с опорой на предмет, или его изображение или элемент росписи (Полхов-Майдан, городец, гжель, хохлома, мезенская роспись, жостовская) | K4: Правильно держит кисть для клея, соблюдает алгоритм аппликации | M4: Создает из готовых геометрических форм орнаменты (по образцу, по представлению), образы предметов окружающего мира | O4: Пользуется ножницами, правильно их держит, режет по прямой, преобразовывает одни фигуры в другие (квадрат в круг) | Q4: Использует разные приемы работы с пластилином, лепит мелкие детали | S4: Создает из пластилина объемные одиночные предметы, в т.ч. Человека, соблюдает пропорции | U4: Создает из пластилина объемные сюжетные композиции, в т.ч. декоративные | W4: Сгибает лист бумаги вчетверо в разных напралениях | Y4: Умеет создавать из бумаги объемные фигуры | AA4: Создает подетки из проидных и других материалов, прочно соединяя части | AC4: Принимает участие в изготовлении пособий для занятий и самостоятельной деятельности, ремонту книг, настольно-печатных игр
C5: н.г. | D5: к.г. | E5: н.г. | F5: к.г. | G5: н.г. | H5: к.г. | I5: н.г. | J5: к.г. | K5: н.г. | L5: к.г. | M5: н.г. | N5: к.г. | O5: н.г. | P5: к.г. | Q5: н.г. | R5: к.г. | S5: н.г. | T5: к.г. | U5: н.г. | V5: к.г. | W5: н.г. | X5: к.г. | Y5: н.г. | Z5: к.г. | AA5: н.г. | AB5: к.г. | AC5: н.г. | AD5: к.г. | AE5: н.г. | AF5: к.г.
A6: 1 | B6: Иванов | C6: 2 | D6: 3 | E6: 2 | F6: 4 | G6: 3 | H6: 4 | I6: 3 | J6: 4 | K6: 3 | L6: 4 | M6: 3 | N6: 4 | O6: 35 | P6: 4 | Q6: 5 | R6: 4 | S6: 5 | T6: 4 | U6: 4 | V6: 5 | W6: 3 | X6: 3 | Y6: 4 | Z6: 5 | AA6: 3 | AB6: 4 | AC6: 3 | AD6: 4 | AE6: =(C6+E6+G6+I6+K6+M6+O6+Q6+S6+U6+W6+Y6+AA6+AC6)/14 -> 5.57 | AF6: =(D6+F6+H6+J6+L6+N6+P6+R6+T6+V6+X6+Z6+AB6+AD6)/14 -> 4.00
A7: 2 | B7: Петров | AE7: =(C7+E7+G7+I7+K7+M7+O7+Q7+S7+U7+W7+Y7+AA7+AC7)/14 -> 0.00 | AF7: 0.00
A8: 3 | B8: Сидоров | AE8: 0.00 | AF8: 0.00
A9: 4 | AE9: 0.00 | AF9: 0.00
A10: 5 | AE10: 0.00 | AF10: 0.00
A11: 6 | AE11: 0.00 | AF11: 0.00
A12: 7 | AE12: 0.00 | AF12: 0.00
A13: 8 | AE13: 0.00 | AF13: 0.00
A14: 9 | AE14: 0.00 | AF14: 0.00
A15: 10 | AE15: 0.00 | AF15: 0.00
A16: 11 | AE16: 0.00 | AF16: 0.00
A17: 12 | AE17: 0.00 | AF17: 0.00
A18: 13 | AE18: 0.00 | AF18: 0.00
A19: 14 | AE19: 0.00 | AF19: 0.00
A20: 15 | AE20: 0.00 | AF20: 0.00
A21: 16 | AE21: 0.00 | AF21: 0.00
A22: 17 | AE22: 0.00 | AF22: 0.00
A23: 18 | AE23: 0.00 | AF23: 0.00
A24: 19 | AE24: 0.00 | AF24: 0.00
A25: 20 | AE25: 0.00 | AF25: 0.00
A26: 21 | AE26: 0.00 | AF26: 0.00
A27: 22 | AE27: 0.00 | AF27: 0.00
A28: 23 | AE28: 0.00 | AF28: 0.00
A29: 24 | AE29: 0.00 | AF29: 0.00
B30: среднее значение: | C30: =(C6+C7+C8+C9+C10+C11+C12+C13+C14+C15+C16+C17+C18+C19+C20+C21+C22+C23+C24+C25+C26+C27+C28+C29)/COUNTA($B$6:$B$29) -> 0.67 | D30: =(D6+D7+D8+D9+D10+D11+D12+D13+D14+D15+D16+D17+D18+D19+D20+D21+D22+D23+D24+D25+D26+D27+D28+D29)/COUNTA($B$6:$B$29) -> 1.00 | E30: 0.67 | F30: 1.33 | G30: 1.00 | H30: 1.33 | I30: 1.00 | J30: 1.33 | K30: 1.00 | L30: 1.33 | M30: 1.00 | N30: 1.33 | O30: 11.67 | P30: 1.33 | Q30: 1.67 | R30: 1.33 | S30: 1.67 | T30: 1.33 | U30: 1.33 | V30: 1.67 | W30: 1.00 | X30: 1.00 | Y30: 1.33 | Z30: 1.67 | AA30: 1.00 | AB30: 1.33 | AC30: 1.00 | AD30: 1.33 | AE30: =(C30+E30+G30+I30+K30+M30+O30+Q30+S30+U30+W30+Y30+AA30+AC30)/14 -> 1.86 | AF30: =(D30+F30+H30+J30+L30+N30+P30+R30+T30+V30+X30+Z30+AB30+AD30)/14 -> 1.33
B33: начало года
C34: всего | D34: норма | E34: ниже нормы | F34: низкий
B35: количество детей | C35: =COUNTA(B6:B29) -> 3 | D35: =COUNTIF(AE6:AE29,">=3,8") -> 1 | E35: =COUNTIFS(AE6:AE29,"<3,7",AE6:AE29,">=2,3") -> 0 | F35: =COUNTIFS(AE6:AE29,"<2,2",AE6:AE29,">0") -> 0
B36: % | C36: 100 | D36: =D35*C36/C35 -> 33.33 | E36: =E35*C36/C35 -> 0.00 | F36: =F35*C36/C35 -> 0.00
B39: конец года
C40: всего | D40: норма | E40: ниже нормы | F40: низкий
B41: количество детей | C41: =COUNTA(B5:B28) -> 3 | D41: =COUNTIF(AF6:AF29,">=3,8") -> 1 | E41: =COUNTIFS(AF6:AF29,"<3,7",AF6:AF29,">=2,3") -> 0 | F41: =COUNTIFS(AF6:AF29,"<2,2",AF6:AF29,">0") -> 0
B42: % | C42: 100 | D42: =D41*C42/C41 -> 33.33 | E42: =E41*C42/C41 -> 0.00 | F42: =F41*C42/C41 -> 0.00

Sheet ХЭ-4
B1: НАПРАВЛЕНИЕ 4. МУЗЫКАЛЬНАЯ ДЕЯТЕЛЬНОСТЬ | AF1: ОГЛАВЛЕНИЕ
B3: №п/п | C3: ФИ ребенка | D3: Слушание | J3: Пение | P3: Песенное творчество | T3: Музыкально-ритмические движения | Z3: Музыкально-игровое и танцевальное творчество | AD3: Игра на ДМИ | AF3: Называет некоторых композиторов | AH3: среднее значение
D4: Правильно называет жанр музыкальною произведения (песня, танец, марш ) | F4: Узнает мелодию по отдельным фрагментам произведений | H4: Различает звучание музыкальных инструментов (фортепиано, скрипка, виолончель, балалайка) | J4: Умеет петь легким звуком в диапазоне от "ре" первой октавы до "до" второй октавы, брать дыхание перед началом песни, между музфкальными фразами | L4: Своевременно начинаети заканчивает песню | N4: Сольное пение с музыкальным сопровождением и без него | P4: Умеет импровизировать мелодию на заданный текст | R4: Сочиняет мелодии различного характера | T4: Свободно ориентируется в пространстве, выполняет простейшие перестроения, самостоятельно меняет темп в соответствии с музыкальными фразами | V4: Выполняет танцевальные движения под музыку: кружение, «ковырялочка», приставной шаг с приседанием, дробный шаг | X4: Умеет двигаться в парах, согласует свои движения с движениями партнера | Z4: Самостоятельно придумывает движения, отражающие звучание песни | AB4: Проявляет интерес к инсценированию содержания песен, хороводов | AD4: Умеет играть в оркестре на разных детских музыкальных ннструментах
D5: н.г. | E5: к.г. | F5: н.г. | G5: к.г. | H5: н.г. | I5: к.г. | J5: н.г. | K5: к.г. | L5: н.г. | M5: к.г. | N5: н.г. | O5: к.г. | P5: н.г. | Q5: к.г. | R5: н.г. | S5: к.г. | T5: н.г. | U5: к.г. | V5: н.г. | W5: к.г. | X5: н.г. | Y5: к.г. | Z5: н.г. | AA5: к.г. | AB5: н.г. | AC5: к.г. | AD5: н.г. | AE5: к.г. | AF5: н.г. | AG5: к.г. | AH5: н.г. | AI5: к.г.
B6: 1 | C6: Иванов | AH6: =(D6+H6+Z6+AB6+AD6+F6+J6+L6+N6+P6+R6+T6+V6+X6+AF6)/15 -> 0.00 | AI6: =(E6+I6+AA6+AC6+AE6+G6+K6+M6+O6+Q6+S6+U6+W6+Y6+AG6)/15 -> 0.00
B7: 2 | C7: Петров | AH7: =(D7+H7+Z7+AB7+AD7+F7+J7+L7+N7+P7+R7+T7+V7+X7+AF7)/15 -> 0.00 | AI7: 0.00
B8: 3 | C8: Сидоров | AH8: 0.00 | AI8: 0.00
B9: 4 | AH9: 0.00 | AI9: 0.00
B10: 5 | AH10: 0.00 | AI10: 0.00
B11: 6 | AH11: 0.00 | AI11: 0.00
B12: 7 | AH12: 0.00 | AI12: 0.00
B13: 8 | AH13: 0.00 | AI13: 0.00
B14: 9 | AH14: 0.00 | AI14: 0.00
B15: 10 | AH15: 0.00 | AI15: 0.00
B16: 11 | AH16: 0.00 | AI16: 0.00
B17: 12 | AH17: 0.00 | AI17: 0.00
B18: 13 | AH18: 0.00 | AI18: 0.00
B19: 14 | AH19: 0.00 | AI19: 0.00
B20: 15 | AH20: 0.00 | AI20: 0.00
B21: 16 | AH21: 0.00 | AI21: 0.00
B22: 17 | AH22: 0.00 | AI22: 0.00
B23: 18 | AH23: 0.00 | AI23: 0.00
B24: 19 | AH24: 0.00 | AI24: 0.00
B25: 20 | AH25: 0.00 | AI25: 0.00
B26: 21 | AH26: 0.00 | AI26: 0.00
B27: 22 | AH27: 0.00 | AI27: 0.00
B28: 23 | AH28: 0.00 | AI28: 0.00
B29: 24 | AH29: 0.00 | AI29: 0.00
C30: среднее значение: | D30: =(D6+D7+D8+D9+D10+D11+D12+D13+D14+D15+D16+D17+D18+D19+D20+D21+D22+D23+D24+D25+D26+D27+D28+D29)/COUNTA($C$6:$C$29) -> 0.00 | E30: =(E6+E7+E8+E9+E10+E11+E12+E13+E14+E15+E16+E17+E18+E19+E20+E21+E22+E23+E24+E25+E26+E27+E28+E29)/COUNTA($C$6:$C$29) -> 0.00 | F30: 0.00 | G30: 0.00 | H30: 0.00 | I30: 0.00 | J30: 0.00 | K30: 0.00 | L30: 0.00 | M30: 0.00 | N30: 0.00 | O30: 0.00 | P30: 0.00 | Q30: 0.00 | R30: 0.00 | S30: 0.00 | T30: 0.00 | U30: 0.00 | V30: 0.00 | W30: 0.00 | X30: 0.00 | Y30: 0.00 | Z30: 0.00 | AA30: 0.00 | AB30: 0.00 | AC30: 0.00 | AD30: 0.00 | AE30: 0.00 | AF30: 0.00 | AG30: 0.00 | AH30: =(D30+H30+Z30+AB30+AD30+F30+J30+L30+N30+P30+R30+T30+V30+X30+AF30)/15 -> 0.00 | AI30: =(E30+I30+AA30+AC30+AE30+G30+K30+M30+O30+Q30+S30+U30+W30+Y30+AG30)/15 -> 0.00
C33: начало года
D34: всего | E34: норма | F34: ниже нормы | G34: низкий
C35: количество детей | D35: =COUNTA(C6:C29) -> 3 | E35: =COUNTIF(AH6:AH29,">=3,8") -> 0 | F35: =COUNTIFS(AH6:AH29,"<3,7",AH6:AH29,">=2,3") -> 0 | G35: =COUNTIFS(AH6:AH29,"<2,2",AH6:AH29,">0") -> 0
C36: % | D36: 100 | E36: =E35*D36/D35 -> 0.00 | F36: =F35*D36/D35 -> 0.00 | G36: =G35*D36/D35 -> 0.00
C39: конец года
D40: всего | E40: норма | F40: ниже нормы | G40: низкий
C41: количество детей | D41: =COUNTA(C5:C28) -> 3 | E41: =COUNTIF(AI6:AI29,">=3,8") -> 0 | F41: =COUNTIFS(AI6:AI29,"<3,7",AI6:AI29,">=2,3") -> 0 | G41: =COUNTIFS(AI6:AI29,"<2,2",AI6:AI29,">0") -> 0
C42: % | D42: 100 | E42: =E41*D42/D41 -> 0.00 | F42: =F41*D42/D41 -> 0.00 | G42: =G41*D42/D41 -> 0.00

Sheet ХЭ-5
A1: НАПРАВЛЕНИЕ 5. ТЕАТРАЛИЗОВАННАЯ И КУЛЬТУРНО-ДОСУГОВАЯ ДЕЯТЕЛЬНОСТЬ | P1: ОГЛАВЛЕНИЕ
A3: №п/п | B3: ФИ ребенка | C3: Театрализованная деятельность | I3: среднее значение | K3: Культурно-досуговая деятельность | Q3: среднее значение
C4: Умеет передавать образы различными способами (речь, мимика, жест, пантомима) | E4: Проявляет инициативу в изготовлении декораций элементов костюма и атрибутов | G4: Знает некоторые виды театрального искусства (кукольный театр, балет, опера) | K4: Проводит свободное время за чтением книг, рисованием, пением и т.д. | M4: Бережно относится к народным праздничным традициям и обычаям | O4: С желанием участвует в народных праздниках и развлечениях
C5: н.г. | D5: к.г. | E5: н.г. | F5: к.г. | G5: н.г. | H5: к.г. | I5: н.г. | J5: к.г. | K5: н.г. | L5: к.г. | M5: н.г. | N5: к.г. | O5: н.г. | P5: к.г. | Q5: н.г. | R5: к.г.
A6: 1 | B6: Иванов | C6: 2 | D6: 3 | E6: 3 | F6: 4 | G6: 3 | H6: 4 | I6: =(C6+E6+G6)/3 -> 2.67 | J6: =(D6+F6+H6)/3 -> 3.67 | K6: 2 | L6: 3 | M6: 2 | N6: 3 | O6: 3 | P6: 4 | Q6: =(K6+M6+O6)/3 -> 2.33 | R6: =(L6+N6+P6)/3 -> 3.33
A7: 2 | B7: Петров | C7: 1 | D7: 2 | E7: 2 | F7: 3 | G7: 2 | H7: 4 | I7: =(C7+E7+G7)/3 -> 1.67 | J7: 3.00 | K7: 2 | L7: 4 | M7: 5 | N7: 5 | O7: 4 | P7: 5 | Q7: =(K7+M7+O7)/3 -> 3.67 | R7: 4.67
A8: 3 | B8: Сидоров | I8: 0.00 | J8: 0.00 | Q8: 0.00 | R8: 0.00
A9: 4 | I9: 0.00 | J9: 0.00 | Q9: 0.00 | R9: 0.00
A10: 5 | I10: 0.00 | J10: 0.00 | Q10: 0.00 | R10: 0.00
A11: 6 | I11: 0.00 | J11: 0.00 | Q11: 0.00 | R11: 0.00
A12: 7 | I12: 0.00 | J12: 0.00 | Q12: 0.00 | R12: 0.00
A13: 8 | I13: 0.00 | J13: 0.00 | Q13: 0.00 | R13: 0.00
A14: 9 | I14: 0.00 | J14: 0.00 | Q14: 0.00 | R14: 0.00
A15: 10 | I15: 0.00 | J15: 0.00 | Q15: 0.00 | R15: 0.00
A16: 11 | I16: 0.00 | J16: 0.00 | Q16: 0.00 | R16: 0.00
A17: 12 | I17: 0.00 | J17: 0.00 | Q17: 0.00 | R17: 0.00
A18: 13 | I18: 0.00 | J18: 0.00 | Q18: 0.00 | R18: 0.00
A19: 14 | I19: 0.00 | J19: 0.00 | Q19: 0.00 | R19: 0.00
A20: 15 | I20: 0.00 | J20: 0.00 | Q20: 0.00 | R20: 0.00
A21: 16 | I21: 0.00 | J21: 0.00 | Q21: 0.00 | R21: 0.00
A22: 17 | I22: 0.00 | J22: 0.00 | Q22: 0.00 | R22: 0.00
A23: 18 | I23: 0.00 | J23: 0.00 | Q23: 0.00 | R23: 0.00
A24: 19 | I24: 0.00 | J24: 0.00 | Q24: 0.00 | R24: 0.00
A25: 20 | I25: 0.00 | J25: 0.00 | Q25: 0.00 | R25: 0.00
A26: 21 | I26: 0.00 | J26: 0.00 | Q26: 0.00 | R26: 0.00
A27: 22 | I27: 0.00 | J27: 0.00 | Q27: 0.00 | R27: 0.00
A28: 23 | I28: 0.00 | J28: 0.00 | Q28: 0.00 | R28: 0.00
A29: 24 | I29: 0.00 | J29: 0.00 | Q29: 0.00 | R29: 0.00
B30: среднее значение: | C30: =(C6+C7+C8+C9+C10+C11+C12+C13+C14+C15+C16+C17+C18+C19+C20+C21+C22+C23+C24+C25+C26+C27+C28+C29)/COUNTA($B$6:$B$29) -> 1.00 | D30: =(D6+D7+D8+D9+D10+D11+D12+D13+D14+D15+D16+D17+D18+D19+D20+D21+D22+D23+D24+D25+D26+D27+D28+D29)/COUNTA($B$6:$B$29) -> 1.67 | E30: 1.67 | F30: 2.33 | G30: 1.67 | H30: 2.67 | I30: 1.44 | J30: 2.22 | K30: =(K6+K7+K8+K9+K10+K11+K12+K13+K14+K15+K16+K17+K18+K19+K20+K21+K22+K23+K24+K25+K26+K27+K28+K29)/COUNTA($B$6:$B$29) -> 1.33 | L30: =(L6+L7+L8+L9+L10+L11+L12+L13+L14+L15+L16+L17+L18+L19+L20+L21+L22+L23+L24+L25+L26+L27+L28+L29)/COUNTA($B$6:$B$29) -> 2.33 | M30: 2.33 | N30: 2.67 | O30: 2.33 | P30: 3.00 | Q30: 2.00 | R30: 2.67
B33: начало года | I33: начало года
A34: ТЕАТРАЛИЗОВАННАЯ ДЕЯТЕЛЬНОСТЬ | C34: всего | D34: норма | E34: ниже нормы | F34: низкий | H34: КУЛЬТУРНО-ДОСУГОВАЯ ДЕЯТЕЛЬНОСТЬ | L34: всего | M34: норма | N34: ниже нормы | O34: низкий
B35: количество детей | C35: =COUNTA(B6:B29) -> 3 | D35: =COUNTIF(I6:I29,">=3,8") -> 0 | E35: =COUNTIFS(I6:I29,"<3,7",I6:I29,">=2,3") -> 1 | F35: =COUNTIFS(I5:I28,"<2,2",I5:I28,">0") -> 1 | I35: количество детей | L35: =COUNTA(B6:B29) -> 3 | M35: =COUNTIF(Q6:Q29,">=3,8") -> 0 | N35: =COUNTIFS(Q6:Q29,"<3,7",Q6:Q29,">=2,3") -> 2 | O35: =COUNTIFS(Q5:Q29,"<2,2",Q5:Q29,">0") -> 0
B36: % | C36: 100 | D36: =D35*C36/C35 -> 0.00 | E36: =E35*C36/C35 -> 33.33 | F36: =F35*C36/C35 -> 33.33 | I36: % | L36: 100 | M36: =M35*L36/L35 -> 0.00 | N36: =N35*L36/L35 -> 66.67 | O36: =O35*L36/L35 -> 0.00
B39: конец года | I39: конец года
C40: всего | D40: норма | E40: ниже нормы | F40: низкий | L40: всего | M40: норма | N40: ниже нормы | O40: низкий
B41: количество детей | C41: =COUNTA(B5:B28) -> 3 | D41: =COUNTIF(J6:J29,">=3,8") -> 0 | E41: =COUNTIFS(J6:J29,"<3,7",J6:J29,">=2,3") -> 2 | F41: =COUNTIFS(J6:J29,"<2,2",J6:J29,">0") -> 0 | I41: количество детей | L41: =COUNTA(B6:B29) -> 3 | M41: =COUNTIF(R6:R29,">=3,8") -> 1 | N41: =COUNTIFS(R6:R29,"<3,7",R6:R29,">=2,3") -> 1 | O41: =COUNTIFS(R6:R29,"<2,2",R6:R29,">0") -> 0
B42: % | C42: 100 | D42: =D41*C42/C41 -> 0.00 | E42: =E41*C42/C41 -> 66.67 | F42: =F41*C42/C41 -> 0.00 | I42: % | L42: 100 | M42: =M41*L42/L41 -> 33.33 | N42: =N41*L42/L41 -> 33.33 | O42: =O41*L42/L41 -> 0.00

Sheet ИТОГ ХЭ
A1: Обобщение результатов педагогической диагностики по направлениям
A2: ОО «Художественно-эстетическое развитие»
H3: ОГЛАВЛЕНИЕ
B4: Приобщение к искусству | C4: Конструктивная деятельность | D4: Изобразительная деятельность | E4: Музыкальная деятельность | F4: Театрализованная деятельность | G4: Культурно-досуговая деятельность | H4: Средний балл/уровень
B5: 1 | C5: 2 | D5: 3 | E5: 4 | F5: 5 | G5: 6 | H5: ср.ур.
A6: начало | B6: ='ХЭ-1'!Q32 -> 0.00 | C6: ='ХЭ-2'!N30 -> 0.00 | D6: ='ХЭ-3'!AE30 -> 1.86 | E6: ='ХЭ-4'!AH30 -> 0.00 | F6: ='ХЭ-5'!I30 -> 1.44 | G6: ='ХЭ-5'!Q30 -> 2.00 | H6: =(B6+C6+D6+E6+F6+G6)/6 -> 0.88
A7: конец | B7: ='ХЭ-1'!R32 -> 0.00 | C7: ='ХЭ-2'!O30 -> 0.00 | D7: ='ХЭ-3'!AF30 -> 1.33 | E7: ='ХЭ-4'!AI30 -> 0.00 | F7: ='ХЭ-5'!J30 -> 2.22 | G7: ='ХЭ-5'!R30 -> 2.67 | H7: =(B7+C7+D7+E7+F7+G7)/6 -> 1.04
A28: ВЫВОДЫ:
A29: Начало учебного года:
A37: Конец учебного года:

Sheet ФР-1
A1: Образовательная область «Физическое развитие»
A3: НАПРАВЛЕНИЕ I. ОСНОВНАЯ ГИМНАСТИКА. ПОДВИЖНЫЕ И СПОРТИВНЫЕ ИГРЫ. СПОРТИВНЫЕ УПРАЖНЕРЯ | AI3: ОГЛАВЛЕНИЕ
A5: №п/п | B5: ФИ ребенка | C5: Умеет ходить на носках, на пятках, на наружных стропах стоп, с высоким подниманием колена, в полуприседе, перекатом с пятки на носок, мелким и широким шагом, приставным шагом влево и вправо | E5: Умеет ходить в колонне но одному, по двое, но трое | G5: Умеет бегать на носках, с высоким подниманием колена, в колонне но одному, но двое, «змейкой», врассыпную, с преодолением препятствий | I5: Умеет ползать на четвереньках с опорой на колени и ладони, на животе но гимнастической скамейке | K5: Прыгает на двух ногах на месте. с продвижением вперед, перепрыгивает через препятствие | M5: Прыгает разными способами: ноги скрестно и врозь, одна нога вперед — другая назад | O5: Умеет прыгать в длину с места и с разбега | Q5: Умеет прыгать в высотус разбега | S5: Умеет прыгат ь через короткую и длинную скакалку’ на двух ногах | U5: Умеет проказ ывазь обручи, мячи в заданном направлении | W5: Умеет подбрасывать мяч вверх и ловить его двумя руками и с хлопками,бросать мяч о землю и ловить двумя руками | Y5: Умеет отбивать мяч на месте более 10 раз | AA5: Умеет метать предметы в горизонтальную и вертикальную цели | AC5: Правильно участвует в различных построениях: колоннах, шеренгах, кругах | AE5: Умеет выполнять упражнения без предметов, с предметами, соблюдает исходное положение | AG5: Умеет играть в спортивные игры (элементы): городки, и баскетбол, футбол, хоккей | AI5: Включается в подвижные игры, соблюдает правила | AK5: Участвует в играх-эстафетах. Соблюдает правила передвижения | AM5: среднее значение
C7: н.г. | D7: к.г. | E7: н.г. | F7: к.г. | G7: н.г. | H7: к.г. | I7: н.г. | J7: к.г. | K7: н.г. | L7: к.г. | M7: н.г. | N7: к.г. | O7: н.г. | P7: к.г. | Q7: н.г. | R7: к.г. | S7: н.г. | T7: к.г. | U7: н.г. | V7: к.г. | W7: н.г. | X7: к.г. | Y7: н.г. | Z7: к.г. | AA7: г. | AB7: к.г. | AC7: н.г. | AD7: к.г. | AE7: н.г. | AF7: к.г. | AG7: н.г. | AH7: к.г. | AI7: н.г. | AJ7: к.г. | AK7: н.г. | AL7: к.г. | AM7: н.г. | AN7: к.г.
A8: 1 | B8: Иванов | AM8: =(C8+E8+G8+I8+K8+M8+O8+Q8+S8+U8+W8+Y8+AA8+AC8+AE8+AG8+AI8+AK8)/18 -> 0.0 | AN8: =(D8+F8+H8+J8+L8+N8+P8+R8+T8+V8+X8+Z8+AB8+AD8+AF8+AH8+AJ8+AL8)/18 -> 0.0
A9: 2 | B9: Петров | AM9: =(C9+E9+G9+I9+K9+M9+O9+Q9+S9+U9+W9+Y9+AA9+AC9+AE9+AG9+AI9+AK9)/18 -> 0.0 | AN9: 0.0
A10: 3 | B10: Сидоров | AM10: 0.0 | AN10: 0.0
A11: 4 | AM11: 0.0 | AN11: 0.0
A12: 5 | AM12: 0.0 | AN12: 0.0
A13: 6 | AM13: 0.0 | AN13: 0.0
A14: 7 | AM14: 0.0 | AN14: 0.0
A15: 8 | AM15: 0.0 | AN15: 0.0
A16: 9 | AM16: 0.0 | AN16: 0.0
A17: 10 | AM17: 0.0 | AN17: 0.0
A18: 11 | AM18: 0.0 | AN18: 0.0
A19: 12 | AM19: 0.0 | AN19: 0.0
A20: 13 | AM20: 0.0 | AN20: 0.0
A21: 14 | AM21: 0.0 | AN21: 0.0
A22: 15 | AM22: 0.0 | AN22: 0.0
A23: 16 | AM23: 0.0 | AN23: 0.0
A24: 17 | AM24: 0.0 | AN24: 0.0
A25: 18 | AM25: 0.0 | AN25: 0.0
A26: 19 | AM26: 0.0 | AN26: 0.0
A27: 20 | AM27: 0.0 | AN27: 0.0
A28: 21 | AM28: 0.0 | AN28: 0.0
A29: 22 | AM29: 0.0 | AN29: 0.0
A30: 23 | AM30: 0.0 | AN30: 0.0
A31: 24 | AM31: 0.0 | AN31: 0.0
B32: среднее значение: | C32: =(C8+C9+C10+C11+C12+C13+C14+C15+C16+C17+C18+C19+C20+C21+C22+C23+C24+C25+C26+C27+C28+C29+C30+C31)/COUNTA($B$8:$B$31) -> 0.0 | D32: =(D8+D9+D10+D11+D12+D13+D14+D15+D16+D17+D18+D19+D20+D21+D22+D23+D24+D25+D26+D27+D28+D29+D30+D31)/COUNTA($B$8:$B$31) -> 0.0 | E32: 0.0 | F32: 0.0 | G32: 0.0 | H32: 0.0 | I32: 0.0 | J32: 0.0 | K32: 0.0 | L32: 0.0 | M32: 0.0 | N32: 0.0 | O32: 0.0 | P32: 0.0 | Q32: 0.0 | R32: 0.0 | S32: 0.0 | T32: 0.0 | U32: 0.0 | V32: 0.0 | W32: 0.0 | X32: 0.0 | Y32: 0.0 | Z32: 0.0 | AA32: 0.0 | AB32: 0.0 | AC32: 0.0 | AD32: 0.0 | AE32: 0.0 | AF32: 0.0 | AG32: 0.0 | AH32: 0.0 | AI32: 0.0 | AJ32: 0.0 | AK32: 0.0 | AL32: 0.0 | AM32: =(C32+E32+G32+I32+K32+M32+O32+Q32+S32+U32+W32+Y32+AA32+AC32+AE32+AG32+AI32+AK32)/18 -> 0.0 | AN32: =(D32+F32+H32+J32+L32+N32+P32+R32+T32+V32+X32+Z32+AB32+AD32+AF32+AH32+AJ32+AL32)/18 -> 0.0
B36: начало года
C37: всего | D37: норма | E37: ниже нормы | F37: низкий
B38: количество детей | C38: =COUNTA(B8:B31) -> 3 | D38: =COUNTIF(AM8:AM31,">=3,8") -> 0 | E38: =COUNTIFS(AM8:AM31,"<3,7",AM8:AM31,">=2,3") -> 0 | F38: =COUNTIFS(AM8:AM31,"<2,2",AM8:AM31,">0") -> 0
B39: % | C39: 100 | D39: =D38*C39/C38 -> 0 | E39: =E38*C39/C38 -> 0.0 | F39: =F38*C39/C38 -> 0.0
B42: конец года
C43: всего | D43: норма | E43: ниже нормы | F43: низкий
B44: количество детей | C44: =COUNTA(B8:B31) -> 3 | D44: =COUNTIF(AN8:AN31,">=3,8") -> 0 | E44: =COUNTIFS(AN8:AN31,"<3,7",AN8:AN31,">=2,3") -> 0 | F44: =COUNTIFS(AN8:AN31,"<2,2",AN8:AN31,">0") -> 0
B45: % | C45: 100 | D45: =D44*C45/C44 -> 0.0 | E45: =E44*C45/C44 -> 0.0 | F45: =F44*C45/C44 -> 0.0

Sheet ФР-2
A1: НАПРАВЛЕНИЕ 2. ФОРМИРОВАНИЕ ОСНОВ ЗДОРОВОГО ОБРАЗА ЖИЗНИ. АКТИВНЫЙ ОТДЫХ | R1: ОГЛАВЛЕНИЕ
A3: №п/п | B3: ФИ ребенка | C3: Навыки самообслуживания сформированы (умеет следить за состоянием одежды, приче­ски, чистотой рук и ногтей) | E3: Знает некоторые полезные и неполезные для здоровья продукты | G3: Знает назначение частей тела и некоторых органов, может рассказать об этом | I3: Воспроизводит некоторые пальчиковые игры на одной и двух руках | K3: Умеет самостоятельно застегивать и paccтегивагь пуговицы, завязывать и развязывать шнурки, аккуратно склады­вать одежду | M3: Умеет удерживать двумя пальцами мелкие предметы, переносить и класть, в маленькую емкость | O3: Сформировано представление о туризме как виде активного отдыха и способе ознакомления с природой и культурой родного края | Q3: Соблюдает правила гигиены и безопасного поведения,осторожность в преодолении препятствий | S3: среднее значение
C5: н.г. | D5: к.г. | E5: н.г. | F5: к.г. | G5: н.г. | H5: к.г. | I5: н.г. | J5: к.г. | K5: н.г. | L5: к.г. | M5: н.г. | N5: к.г. | O5: н.г. | P5: к.г. | Q5: н.г. | R5: к.г. | S5: н.г. | T5: к.г.
A6: 1 | B6: Иванов | S6: =(C6+E6+G6+I6+K6+M6+O6+Q6)/8 -> 0.0 | T6: =(D6+F6+H6+J6+L6+N6+P6+R6)/8 -> 0.0
A7: 2 | B7: Петров | S7: =(C7+E7+G7+I7+K7+M7+O7+Q7)/8 -> 0.0 | T7: 0.0
A8: 3 | B8: Сидоров | S8: 0.0 | T8: 0.0
A9: 4 | S9: 0.0 | T9: 0.0
A10: 5 | S10: 0.0 | T10: 0.0
A11: 6 | S11: 0.0 | T11: 0.0
A12: 7 | S12: 0.0 | T12: 0.0
A13: 8 | S13: 0.0 | T13: 0.0
A14: 9 | S14: 0.0 | T14: 0.0
A15: 10 | S15: 0.0 | T15: 0.0
A16: 11 | S16: 0.0 | T16: 0.0
A17: 12 | S17: 0.0 | T17: 0.0
A18: 13 | S18: 0.0 | T18: 0.0
A19: 14 | S19: 0.0 | T19: 0.0
A20: 15 | S20: 0.0 | T20: 0.0
A21: 16 | S21: 0.0 | T21: 0.0
A22: 17 | S22: 0.0 | T22: 0.0
A23: 18 | S23: 0.0 | T23: 0.0
A24: 19 | S24: 0.0 | T24: 0.0
A25: 20 | S25: 0.0 | T25: 0.0
A26: 21 | S26: 0.0 | T26: 0.0
A27: 22 | S27: 0.0 | T27: 0.0
A28: 23 | S28: 0.0 | T28: 0.0
A29: 24 | S29: 0.0 | T29: 0.0
B30: среднее значение: | C30: =(C6+C7+C8+C9+C10+C11+C12+C13+C14+C15+C16+C17+C18+C19+C20+C21+C22+C23+C24+C25+C26+C27+C28+C29)/COUNTA($B$6:$B$29) -> 0.0 | D30: =(D6+D7+D8+D9+D10+D11+D12+D13+D14+D15+D16+D17+D18+D19+D20+D21+D22+D23+D24+D25+D26+D27+D28+D29)/COUNTA($B$6:$B$29) -> 0.0 | E30: 0.0 | F30: 0.0 | G30: 0.0 | H30: 0.0 | I30: 0.0 | J30: 0.0 | K30: 0.0 | L30: 0.0 | M30: 0.0 | N30: 0.0 | O30: 0.0 | P30: 0.0 | Q30: 0.0 | R30: 0.0 | S30: =(C30+E30+G30+I30+K30+M30+O30+Q30)/8 -> 0.0 | T30: =(D30+F30+H30+J30+L30+N30+P30+R30)/8 -> 0.0
B32: начало года
C33: всего | D33: норма | E33: ниже нормы | F33: низкий
B34: количество детей | C34: =COUNTA(B6:B29) -> 3 | D34: =COUNTIF(S6:S29,">=3,8") -> 0 | E34: =COUNTIFS(S6:S29,"<3,7",S6:S29,">=2,3") -> 0 | F34: =COUNTIFS(S6:S29,"<2,2",S6:S29,">0") -> 0
B35: % | C35: 100 | D35: =D34*C35/C34 -> 0 | E35: =E34*C35/C34 -> 0.0 | F35: =F34*C35/C34 -> 0.0
B37: конец года
C38: всего | D38: норма | E38: ниже нормы | F38: низкий
B39: количество детей | C39: =COUNTA(B5:B28) -> 3 | D39: =COUNTIF(T6:T29,">=3,8") -> 0 | E39: =COUNTIFS(T6:T29,"<3,7",T6:T29,">=2,3") -> 0 | F39: =COUNTIFS(T6:T29,"<2,2",T6:T29,">0") -> 0
B40: % | C40: 100 | D40: =D39*C40/C39 -> 0.0 | E40: =E39*C40/C39 -> 0.0 | F40: =F39*C40/C39 -> 0.0

Sheet ИТОГ ФР
A1: Обобщение результатов педагогической диагностики по направлениям ОО «Физическое развитие»
E2: ОГЛАВЛЕНИЕ
C4: Основная гимнастика. Подвижные и спортивные игры. Спортивные упражнения. | D4: Формирование основ здорового образа жизни. Активный отдых. | E4: Средний балл/уровень
C5: 1 | D5: 2 | E5: ср.ур.
B6: начало | C6: ='ФР-1'!$AM$32 -> 0.00 | D6: ='ФР-2'!S30 -> 0.00 | E6: =(C6+D6)/2 -> 0.00
B7: конец | C7: ='ФР-1'!$AN$32 -> 0.00 | D7: ='ФР-2'!T30 -> 0.00 | E7: =(C7+D7)/2 -> 0.00
A28: ВЫВОДЫ:
A29: Начало учебного года:
A37: Конец учебного года:

Sheet ОБЩИЙ ИТОГ
B1: Обобщение результатов педагогической диагностики по всем образовательным областям
B2: на 202__/2____ учебный год
H3: ОГЛАВЛЕНИЕ
C5: Речевое развитие | D5: Познавательное развитие | E5: Социально­коммуникативное развитие | F5: Художественно­эстетическое развитие | G5: Физическое развитие | H5: Средний балл/уровень
C6: РР | D6: ПР | E6: СК | F6: ХЭ | G6: ФР | H6: ср.ур.
B7: начало | C7: ='ИТОГ РР'!F6 -> 0.24 | D7: ='ИТОГ ПР'!E6 -> 0.00 | E7: ='ИТОГ СК'!F6 -> 0.33 | F7: ='ИТОГ ХЭ'!H6 -> 0.88 | G7: ='ИТОГ ФР'!E6 -> 0.00 | H7: =(C7+D7+E7+F7+G7)/5 -> 0.29
B8: конец | C8: ='ИТОГ РР'!F7 -> 0.31 | D8: ='ИТОГ ПР'!E7 -> 0.00 | E8: ='ИТОГ СК'!F7 -> 0.44 | F8: ='ИТОГ ХЭ'!H7 -> 1.04 | G8: ='ИТОГ ФР'!E7 -> 0.00 | H8: =(C8+D8+E8+F8+G8)/5 -> 0.36
B29: Основные выводы по результатам педагогической диагностики
B31: Педагогический процесс организован на _________ уровне.
B32: Следует обратить внимание на трудности реализации образовательной(-ых) области(-ей) «_________ развитие» в следующих аспектах:
B33: 1.
B34: 2.
B35: 3.
B38: В индивидуальной помощи нуждаются следующие дети:
B39: 1. «Речевое развитие»:
B45: 2. «Познавательное развитие»:
B51: 3. «Социально-коммуникативное развитие»:
B57: 4. «Художественно-эстетическое развитие»:
B63: 5. «Физическое развитие»:
